Workbook

Sheet Note Balance
C1: TOTAL NOTE BALANCES
D2: Total Notes | E2: Class A1 Notes | F2: Class A2 Notes | G2: Class B Notes | H2: Class C Notes | I2: Class D Notes
C3: Initial Invested Amount | D3: =SUM(E3:I3) -> 331000000 | E3: 105000000 | F3: 198000000 | G3: 11300000 | H3: 10500000 | I3: 6200000
A4: (a) | C4: Invested Amount as at Previous Payment Date: 3 March 2016 | D4: =SUM(E4:I4) -> 331000000 | E4: 105000000 | F4: 198000000 | G4: 11300000 | H4: 10500000 | I4: 6200000
A5: (b) | C5: Stated Amount as at Previous Payment Date: 3 March 2016 | D5: 331000000 | E5: 105000000 | F5: 198000000 | G5: 11300000 | H5: 10500000 | I5: 6200000
A6: (d) | C6: Principal Payments to Noteholders on Payment Date | D6: 74839799.26 | E6: 74839799.26 | F6: 0 | G6: 0 | H6: 0 | I6: 0
C7: Gross Aggregate Charge-Offs | D7: 0 | E7: 0 | F7: 0 | G7: 0 | H7: 0 | I7: 0
C8: Gross Aggregate Reinstatements of charge-offs | D8: 0 | E8: 0 | F8: 0 | G8: 0 | H8: 0 | I8: 0
A9: (e) | C9: Aggregate Charge-Offs for this Collection Period | D9: 0 | E9: 0 | F9: 0 | G9: 0 | H9: 0 | I9: 0
A10: (f) | C10: Reinstatements relating to Charge-offs that have occurred this Collection Period | D10: 0 | E10: 0 | F10: 0 | G10: 0 | H10: 0 | I10: 0
C11: Aggregate Carry Over Charge-offs not previously reinstated | D11: 0 | E11: 0 | F11: 0 | G11: 0 | H11: 0 | I11: 0
C12: Reinstatements of Carry Over Charge-offs not previously reinstated | D12: 0 | E12: 0 | F12: 0 | G12: 0 | H12: 0 | I12: 0
C13: Aggregate Charge-Offs not reinstated and to be carried over to next period | D13: 0 | E13: 0 | F13: 0 | G13: 0 | H13: 0 | I13: 0
C14: Invested Amount as at Payment Date: 16 May 2016 | D14: =SUM(E14:I14) -> 256160200.7 | E14: 30160200.74 | F14: 198000000 | G14: 11300000 | H14: 10500000 | I14: 6200000
C15: Stated Amount as at Payment Date: 16 May 2016 | D15: =SUM(E15:I15) -> 256160200.7 | E15: 30160200.74 | F15: 198000000 | G15: 11300000 | H15: 10500000 | I15: 6200000
C16: Bond Factor at Payment Date: 16 May 2016 | E16: 0.287240007 | F16: 1 | G16: 1 | H16: 1 | I16: 1
C17: Coupon Margin | E17: 0.006 | F17: 0.013 | G17: 0.02 | H17: 0.025 | I17: 0.0245
C18: Coupon Rate (3 month BBSW + margin) | E18: 0.0291 | F18: 0.0361 | G18: 0.0431 | H18: 0.0481 | I18: 0.0476
C19: Days in Coupon Period | E19: 74 | F19: 74 | G19: 74 | H19: 74 | I19: 74
C20: Coupon Entitlement to be paid out on the current Payment Date: 16 May 2016 | E20: 619471.23 | F20: 1449143.01 | G20: 98740.33 | H20: 102393.7 | I20: 59832.55
C23: TOTAL NOTE BALANCES
D24: Total Notes | E24: Class A1 Notes | F24: Class A2 Notes | G24: Class B Notes | H24: Class C Notes | I24: Class D Notes
C25: Initial Invested Amount | D25: =SUM(E25:I25) -> 331000000 | E25: 105000000 | F25: 198000000 | G25: 11300000 | H25: 10500000 | I25: 6200000
A26: (a) | C26: Invested Amount as at Previous Payment Date: 16 May 2016 | D26: =SUM(E26:I26) -> 256160200.7 | E26: 30160200.74 | F26: 198000000 | G26: 11300000 | H26: 10500000 | I26: 6200000
A27: (b) | C27: Stated Amount as at Previous Payment Date: 16 May 2016 | D27: 256160200.7 | E27: 30160200.74 | F27: 198000000 | G27: 11300000 | H27: 10500000 | I27: 6200000
A28: (d) | C28: Principal Payments to Noteholders on Payment Date | D28: 21349482.67 | E28: 21349482.67 | F28: 0 | G28: 0 | H28: 0 | I28: 0
C29: Gross Aggregate Charge-Offs | D29: 0 | E29: 0 | F29: 0 | G29: 0 | H29: 0 | I29: 0
C30: Gross Aggregate Reinstatements of charge-offs | D30: 0 | E30: 0 | F30: 0 | G30: 0 | H30: 0 | I30: 0
A31: (e) | C31: Aggregate Charge-Offs for this Collection Period | D31: =SUM(E31:I31) -> 0 | E31: 0 | F31: 0 | G31: 0 | H31: 0 | I31: 0
A32: (f) | C32: Reinstatements relating to Charge-offs that have occurred this Collection Period | D32: =SUM(E32:I32) -> 0 | E32: 0 | F32: 0 | G32: 0 | H32: 0 | I32: 0
C33: Aggregate Carry Over Charge-offs not previously reinstated | D33: =SUM(E33:I33) -> 0 | E33: 0 | F33: 0 | G33: 0 | H33: 0 | I33: 0
C34: Reinstatements of Carry Over Charge-offs not previously reinstated | D34: 0 | E34: 0 | F34: 0 | G34: 0 | H34: 0 | I34: 0
C35: Aggregate Charge-Offs not reinstated and to be carried over to next period | D35: =SUM(D31:D34) -> 0 | E35: 0 | F35: 0 | G35: 0 | H35: 0 | I35: 0
C36: Invested Amount as at Payment Date: 16 August 2016 | D36: =SUM(E36:I36) -> 234810718.1 | E36: 8810718.07 | F36: 198000000 | G36: 11300000 | H36: 10500000 | I36: 6200000
C37: Stated Amount as at Payment Date: 16 August 2016 | D37: =SUM(E37:I37) -> 234810718.1 | E37: 8810718.07 | F37: 198000000 | G37: 11300000 | H37: 10500000 | I37: 6200000
C38: Bond Factor at Payment Date: 16 August 2016 | E38: 0.08391160067 | F38: 1 | G38: 1 | H38: 1 | I38: 1
C39: Coupon Margin | E39: 0.006 | F39: 0.013 | G39: 0.02 | H39: 0.025 | I39: 0.0245
C40: Coupon Rate (3 month BBSW + margin) | E40: 0.02585 | F40: 0.03285 | G40: 0.03985 | H40: 0.04485 | I40: 0.04435
C41: Days in Coupon Period | E41: 92 | F41: 92 | G41: 92 | H41: 92 | I41: 92
C42: Coupon Entitlement to be paid out on the current Payment Date: 16 August 2016 | E42: 196512.3 | F42: 1639440 | G42: 113501.53 | H42: 118698.9 | I42: 69307.51
C45: TOTAL NOTE BALANCES
D46: Total Notes | E46: Class A1 Notes | F46: Class A2 Notes | G46: Class B Notes | H46: Class C Notes | I46: Class D Notes
C47: Initial Invested Amount | D47: =SUM(E47:I47) -> 331000000 | E47: 105000000 | F47: 198000000 | G47: 11300000 | H47: 10500000 | I47: 6200000
A48: (a) | C48: Invested Amount as at Previous Payment Date: 16 August 2016 | D48: =SUM(E48:I48) -> 234810718.1 | E48: 8810718.07 | F48: 198000000 | G48: 11300000 | H48: 10500000 | I48: 6200000
A49: (b) | C49: Stated Amount as at Previous Payment Date: 16 August 2016 | D49: =SUM(E49:I49) -> 234810718.1 | E49: 8810718.07 | F49: 198000000 | G49: 11300000 | H49: 10500000 | I49: 6200000
A50: (d) | C50: Principal Payments to Noteholders on Payment Date | D50: =SUM(E50:I50) -> 20385939.14 | E50: 8810718.07 | F50: 11575221.07 | G50: 0 | H50: 0 | I50: 0
C51: Gross Aggregate Charge-Offs | D51: 0 | E51: 0 | F51: 0 | G51: 0 | H51: 0 | I51: 0
C52: Gross Aggregate Reinstatements of charge-offs | D52: 0 | E52: 0 | F52: 0 | G52: 0 | H52: 0 | I52: 0
A53: (e) | C53: Aggregate Charge-Offs for this Collection Period | D53: 0 | E53: 0 | F53: 0 | G53: 0 | H53: 0 | I53: 0
A54: (f) | C54: Reinstatements relating to Charge-offs that have occurred this Collection Period | D54: 0 | E54: 0 | F54: 0 | G54: 0 | H54: 0 | I54: 0
C55: Aggregate Carry Over Charge-offs not previously reinstated | D55: 0 | E55: 0 | F55: 0 | G55: 0 | H55: 0 | I55: 0
C56: Reinstatements of Carry Over Charge-offs not previously reinstated | D56: 0 | E56: 0 | F56: 0 | G56: 0 | H56: 0 | I56: 0
C57: Aggregate Charge-Offs not reinstated and to be carried over to next period | D57: =SUM(D53:D56) -> 0 | E57: 0 | F57: 0 | G57: 0 | H57: 0 | I57: 0
C58: Invested Amount as at Payment Date: 16 November 2016 | D58: =SUM(E58:I58) -> 214424778.9 | E58: 0 | F58: 186424778.9 | G58: 11300000 | H58: 10500000 | I58: 6200000
C59: Stated Amount as at Payment Date: 16 November 2016 | D59: =SUM(E59:I59) -> 214424778.9 | E59: -7.450580597e-09 | F59: 186424778.9 | G59: 11300000 | H59: 10500000 | I59: 6200000
C60: Bond Factor at Payment Date: 16 November 2016 | E60: -7.095791045e-17 | F60: 0.9415392875 | G60: 1 | H60: 1 | I60: 1
C61: Coupon Margin | E61: 0.006 | F61: 0.013 | G61: 0.02 | H61: 0.025 | I61: 0.0245
C62: Coupon Rate (3 month BBSW + margin) | E62: 0.02355 | F62: 0.03055 | G62: 0.03755 | H62: 0.04255 | I62: 0.04205
C63: Days in Coupon Period | E63: 92 | F63: 92 | G63: 92 | H63: 92 | I63: 92
C64: Coupon Entitlement to be paid out on the current Payment Date: 16 November 2016 | E64: 52299.46 | F64: 1524654.25 | G64: 106950.63 | H64: 112611.78 | I64: 65713.21
C67: TOTAL NOTE BALANCES
D68: Total Notes | E68: Class A1 Notes | F68: Class A2 Notes | G68: Class B Notes | H68: Class C Notes | I68: Class D Notes
C69: Initial Invested Amount | D69: =SUM(E69:I69) -> 331000000 | E69: 105000000 | F69: 198000000 | G69: 11300000 | H69: 10500000 | I69: 6200000
A70: (a) | C70: Invested Amount as at Previous Payment Date: 16 November 2016 | D70: =SUM(E70:I70) -> 214424778.9 | E70: 0 | F70: 186424778.9 | G70: 11300000 | H70: 10500000 | I70: 6200000
A71: (b) | C71: Stated Amount as at Previous Payment Date: 16 November 2016 | D71: 214424778.9 | E71: -7.450580597e-09 | F71: 186424778.9 | G71: 11300000 | H71: 10500000 | I71: 6200000
A72: (d) | C72: Principal Payments to Noteholders on Payment Date | D72: 19109971.65 | E72: 0 | F72: 19109971.65 | G72: 0 | H72: 0 | I72: 0
C73: Gross Aggregate Charge-Offs | D73: 0 | E73: 0 | F73: 0 | G73: 0 | H73: 0 | I73: 0
C74: Gross Aggregate Reinstatements of charge-offs | D74: 0 | E74: 0 | F74: 0 | G74: 0 | H74: 0 | I74: 0
A75: (e) | C75: Aggregate Charge-Offs for this Collection Period | D75: -7.450580597e-09 | E75: -7.450580597e-09 | F75: 0 | G75: 0 | H75: 0 | I75: 0
A76: (f) | C76: Reinstatements relating to Charge-offs that have occurred this Collection Period | D76: 0 | E76: 0 | F76: 0 | G76: 0 | H76: 0 | I76: 0
C77: Aggregate Carry Over Charge-offs not previously reinstated | D77: 0 | E77: 0 | F77: 0 | G77: 0 | H77: 0 | I77: 0
C78: Reinstatements of Carry Over Charge-offs not previously reinstated | D78: 0 | E78: 0 | F78: 0 | G78: 0 | H78: 0 | I78: 0
C79: Aggregate Charge-Offs not reinstated and to be carried over to next period | D79: =SUM(D75:D78) -> -7.450580597e-09 | E79: -7.450580597e-09 | F79: 0 | G79: 0 | H79: 0 | I79: 0
C80: Invested Amount as at Payment Date: 16 February 2017 | D80: =SUM(E80:I80) -> 195314807.3 | E80: 0 | F80: 167314807.3 | G80: 11300000 | H80: 10500000 | I80: 6200000
C81: Stated Amount as at Payment Date: 16 February 2017 | D81: =SUM(E81:I81) -> 195314807.3 | E81: 0 | F81: 167314807.3 | G81: 11300000 | H81: 10500000 | I81: 6200000
C82: Bond Factor at Payment Date: 16 February 2017 | E82: 0 | F82: 0.8450242792 | G82: 1 | H82: 1 | I82: 1
C83: Coupon Margin | E83: 0.006 | F83: 0.013 | G83: 0.02 | H83: 0.025 | I83: 0.0245
C84: Coupon Rate (3 month BBSW + margin) | E84: 0.0236 | F84: 0.0306 | G84: 0.0376 | H84: 0.0426 | I84: 0.0421
C85: Days in Coupon Period | E85: 92 | F85: 92 | G85: 92 | H85: 92 | I85: 92
C86: Coupon Entitlement to be paid out on the current Payment Date: 16 February 2017 | E86: 0 | F86: 1437871.34 | G86: 107093.04 | H86: 112744.11 | I86: 65791.34
C89: TOTAL NOTE BALANCES
D90: Total Notes | E90: Class A1 Notes | F90: Class A2 Notes | G90: Class B Notes | H90: Class C Notes | I90: Class D Notes
C91: Initial Invested Amount | D91: =SUM(E91:I91) -> 331000000 | E91: 105000000 | F91: 198000000 | G91: 11300000 | H91: 10500000 | I91: 6200000
A92: (a) | C92: Invested Amount as at Previous Payment Date: 16 February 2017 | D92: =SUM(E92:I92) -> 195314807.3 | E92: 0 | F92: 167314807.3 | G92: 11300000 | H92: 10500000 | I92: 6200000
A93: (b) | C93: Stated Amount as at Previous Payment Date: 16 February 2017 | D93: 195314807.3 | E93: 0 | F93: 167314807.3 | G93: 11300000 | H93: 10500000 | I93: 6200000
A94: (d) | C94: Principal Payments to Noteholders on Payment Date | D94: 53461683.04 | E94: 0 | F94: 53461683.04 | G94: 0 | H94: 0 | I94: 0
C95: Gross Aggregate Charge-Offs | D95: 0 | E95: 0 | F95: 0 | G95: 0 | H95: 0 | I95: 0
C96: Gross Aggregate Reinstatements of charge-offs | D96: 0 | E96: 0 | F96: 0 | G96: 0 | H96: 0 | I96: 0
A97: (e) | C97: Aggregate Charge-Offs for this Collection Period | D97: -7.450580597e-09 | E97: 0 | F97: 0 | G97: 0 | H97: 0 | I97: 0
A98: (f) | C98: Reinstatements relating to Charge-offs that have occurred this Collection Period | D98: 0 | E98: 0 | F98: 0 | G98: 0 | H98: 0 | I98: 0
C99: Aggregate Carry Over Charge-offs not previously reinstated | D99: 0 | E99: 0 | F99: 0 | G99: 0 | H99: 0 | I99: 0
C100: Reinstatements of Carry Over Charge-offs not previously reinstated | D100: 0 | E100: 0 | F100: 0 | G100: 0 | H100: 0 | I100: 0
C101: Aggregate Charge-Offs not reinstated and to be carried over to next period | D101: =SUM(D97:D100) -> -7.450580597e-09 | E101: 0 | F101: 0 | G101: 0 | H101: 0 | I101: 0
C102: Invested Amount as at Payment Date: 16 May 2017 | D102: =SUM(E102:I102) -> 141853124.2 | E102: 0 | F102: 113853124.2 | G102: 11300000 | H102: 10500000 | I102: 6200000
C103: Stated Amount as at Payment Date: 16 May 2017 | D103: 141853124.2 | E103: 0 | F103: 113853124.2 | G103: 11300000 | H103: 10500000 | I103: 6200000
C104: Bond Factor at Payment Date: 16 May 2017 | E104: 0 | F104: 0.575015779 | G104: 1 | H104: 1 | I104: 1
C105: Coupon Margin | E105: 0.006 | F105: 0.013 | G105: 0.02 | H105: 0.025 | I105: 0.0245
C106: Coupon Rate (3 month BBSW + margin) | E106: 0.0238 | F106: 0.0308 | G106: 0.0378 | H106: 0.0428 | I106: 0.0423
C107: Days in Coupon Period | E107: 89 | F107: 89 | G107: 89 | H107: 89 | I107: 89
C108: Coupon Entitlement to be paid out on the current Payment Date: 16 May 2017 | E108: 0 | F108: 1256557.12 | G108: 104151.95 | H108: 109579.73 | I108: 63948.33
C111: TOTAL NOTE BALANCES
D112: Total Notes | E112: Class A1 Notes | F112: Class A2 Notes | G112: Class B Notes | H112: Class C Notes | I112: Class D Notes
C113: Initial Invested Amount | D113: =SUM(E113:I113) -> 331000000 | E113: 105000000 | F113: 198000000 | G113: 11300000 | H113: 10500000 | I113: 6200000
A114: (a) | C114: Invested Amount as at Previous Payment Date: 16 May 2017 | D114: =SUM(E114:I114) -> 141853124.2 | E114: 0 | F114: 113853124.2 | G114: 11300000 | H114: 10500000 | I114: 6200000
A115: (b) | C115: Stated Amount as at Previous Payment Date: 16 May 2017 | D115: 141853124.2 | E115: 0 | F115: 113853124.2 | G115: 11300000 | H115: 10500000 | I115: 6200000
A116: (d) | C116: Principal Payments to Noteholders on Payment Date | D116: 17286743.24 | E116: 0 | F116: 17286743.24 | G116: 0 | H116: 0 | I116: 0
C117: Gross Aggregate Charge-Offs | D117: 0 | E117: 0 | F117: 0 | G117: 0 | H117: 0 | I117: 0
C118: Gross Aggregate Reinstatements of charge-offs | D118: 0 | E118: 0 | F118: 0 | G118: 0 | H118: 0 | I118: 0
A119: (e) | C119: Aggregate Charge-Offs for this Collection Period | D119: -7.450580597e-09 | E119: 0 | F119: 0 | G119: 0 | H119: 0 | I119: 0
A120: (f) | C120: Reinstatements relating to Charge-offs that have occurred this Collection Period | D120: 0 | E120: 0 | F120: 0 | G120: 0 | H120: 0 | I120: 0
C121: Aggregate Carry Over Charge-offs not previously reinstated | D121: 0 | E121: 0 | F121: 0 | G121: 0 | H121: 0 | I121: 0
C122: Reinstatements of Carry Over Charge-offs not previously reinstated | D122: 0 | E122: 0 | F122: 0 | G122: 0 | H122: 0 | I122: 0
C123: Aggregate Charge-Offs not reinstated and to be carried over to next period | D123: =SUM(D119:D122) -> -7.450580597e-09 | E123: 0 | F123: 0 | G123: 0 | H123: 0 | I123: 0
C124: Invested Amount as at Payment Date: 16 August 2017 | D124: =SUM(E124:I124) -> 124566381 | E124: 0 | F124: 96566381 | G124: 11300000 | H124: 10500000 | I124: 6200000
C125: Stated Amount as at Payment Date: 16 August 2017 | D125: 124566381 | E125: 0 | F125: 96566381 | G125: 11300000 | H125: 10500000 | I125: 6200000
C126: Bond Factor at Payment Date: 16 August 2017 | E126: 0 | F126: 0.4877089949 | G126: 1 | H126: 1 | I126: 1
C127: Coupon Margin | E127: 0.006 | F127: 0.013 | G127: 0.02 | H127: 0.025 | I127: 0.0245
C128: Coupon Rate (3 month BBSW + margin) | E128: 0.02335 | F128: 0.03035 | G128: 0.03735 | H128: 0.04235 | I128: 0.04185
C129: Days in Coupon Period | E129: 92 | F129: 92 | G129: 92 | H129: 92 | I129: 92
C130: Coupon Entitlement to be paid out on the current Payment Date: 16 August 2017 | E130: 0 | F130: 870960.8 | G130: 106380.99 | H130: 112082.47 | I130: 65400.66
C133: TOTAL NOTE BALANCES
D134: Total Notes | E134: Class A1 Notes | F134: Class A2 Notes | G134: Class B Notes | H134: Class C Notes | I134: Class D Notes
C135: Initial Invested Amount | D135: =SUM(E135:I135) -> 331000000 | E135: 105000000 | F135: 198000000 | G135: 11300000 | H135: 10500000 | I135: 6200000
C136: Invested Amount as at Previous Payment Date: 16 August 2017 | D136: =SUM(E136:I136) -> 124566381 | E136: 0 | F136: 96566381 | G136: 11300000 | H136: 10500000 | I136: 6200000
C137: Stated Amount as at Previous Payment Date: 16 August 2017 | D137: 124566381 | E137: 0 | F137: 96566381 | G137: 11300000 | H137: 10500000 | I137: 6200000
C138: Principal Payments to Noteholders on Payment Date | D138: 15655432.37 | E138: 0 | F138: 15655432.37 | G138: 0 | H138: 0 | I138: 0
C139: Gross Aggregate Charge-Offs | D139: 0 | E139: 0 | F139: 0 | G139: 0 | H139: 0 | I139: 0
C140: Gross Aggregate Reinstatements of charge-offs | D140: 0 | E140: 0 | F140: 0 | G140: 0 | H140: 0 | I140: 0
C141: Aggregate Charge-Offs for this Collection Period | D141: -7.450580597e-09 | E141: 0 | F141: 0 | G141: 0 | H141: 0 | I141: 0
C142: Reinstatements relating to Charge-offs that have occurred this Collection Period | D142: 0 | E142: 0 | F142: 0 | G142: 0 | H142: 0 | I142: 0
C143: Aggregate Carry Over Charge-offs not previously reinstated | D143: 0 | E143: 0 | F143: 0 | G143: 0 | H143: 0 | I143: 0
C144: Reinstatements of Carry Over Charge-offs not previously reinstated | D144: 0 | E144: 0 | F144: 0 | G144: 0 | H144: 0 | I144: 0
C145: Aggregate Charge-Offs not reinstated and to be carried over to next period | D145: =SUM(D141:D144) -> -7.450580597e-09 | E145: 0 | F145: 0 | G145: 0 | H145: 0 | I145: 0
C146: Invested Amount as at Payment Date: 16 November 2017 | D146: =SUM(E146:I146) -> 108910948.6 | E146: 0 | F146: 80910948.63 | G146: 11300000 | H146: 10500000 | I146: 6200000
C147: Stated Amount as at Payment Date: 16 November 2017 | D147: 108910948.6 | E147: 0 | F147: 80910948.63 | G147: 11300000 | H147: 10500000 | I147: 6200000
C148: Bond Factor at Payment Date: 16 November 2017 | E148: 0 | F148: 0.4086411547 | G148: 1 | H148: 1 | I148: 1
C149: Coupon Margin | E149: 0.006 | F149: 0.013 | G149: 0.02 | H149: 0.025 | I149: 0.0245
C150: Coupon Rate (3 month BBSW + margin) | E150: 0.0229 | F150: 0.0299 | G150: 0.0369 | H150: 0.0419 | I150: 0.0414
C151: Days in Coupon Period | E151: 92 | F151: 92 | G151: 92 | H151: 92 | I151: 92
C152: Coupon Entitlement to be paid out on the current Payment Date: 16 November 2017 | E152: 0 | F152: 727766.58 | G152: 105099.29 | H152: 110891.51 | I152: 64697.42
C155: TOTAL NOTE BALANCES
D156: Total Notes | E156: Class A1 Notes | F156: Class A2 Notes | G156: Class B Notes | H156: Class C Notes | I156: Class D Notes
C157: Initial Invested Amount | D157: =SUM(E157:I157) -> 331000000 | E157: 105000000 | F157: 198000000 | G157: 11300000 | H157: 10500000 | I157: 6200000
C158: Invested Amount as at Previous Payment Date: 16 November 2017 | D158: =SUM(E158:I158) -> 108910948.6 | E158: 0 | F158: 80910948.63 | G158: 11300000 | H158: 10500000 | I158: 6200000
C159: Stated Amount as at Previous Payment Date: 16 November 2017 | D159: 108910948.6 | E159: 0 | F159: 80910948.63 | G159: 11300000 | H159: 10500000 | I159: 6200000
C160: Principal Payments to Noteholders on Payment Date | D160: 14266198.11 | E160: 0 | F160: 14266198.11 | G160: 0 | H160: 0 | I160: 0
C161: Gross Aggregate Charge-Offs | D161: 0 | E161: 0 | F161: 0 | G161: 0 | H161: 0 | I161: 0
C162: Gross Aggregate Reinstatements of charge-offs | D162: 0 | E162: 0 | F162: 0 | G162: 0 | H162: 0 | I162: 0
C163: Aggregate Charge-Offs for this Collection Period | D163: -7.450580597e-09 | E163: 0 | F163: 0 | G163: 0 | H163: 0 | I163: 0
C164: Reinstatements relating to Charge-offs that have occurred this Collection Period | D164: 0 | E164: 0 | F164: 0 | G164: 0 | H164: 0 | I164: 0
C165: Aggregate Carry Over Charge-offs not previously reinstated | D165: 0 | E165: 0 | F165: 0 | G165: 0 | H165: 0 | I165: 0
C166: Reinstatements of Carry Over Charge-offs not previously reinstated | D166: 0 | E166: 0 | F166: 0 | G166: 0 | H166: 0 | I166: 0
C167: Aggregate Charge-Offs not reinstated and to be carried over to next period | D167: =SUM(D163:D166) -> -7.450580597e-09 | E167: 0 | F167: 0 | G167: 0 | H167: 0 | I167: 0
C168: Invested Amount as at Payment Date: 16 February 2018 | D168: =SUM(E168:I168) -> 94644750.52 | E168: 0 | F168: 66644750.52 | G168: 11300000 | H168: 10500000 | I168: 6200000
C169: Stated Amount as at Payment Date: 16 February 2018 | D169: 94644750.52 | E169: 0 | F169: 66644750.52 | G169: 11300000 | H169: 10500000 | I169: 6200000
C170: Bond Factor at Payment Date: 16 February 2018 | E170: 0 | F170: 0.3365896491 | G170: 1 | H170: 1 | I170: 1
C171: Coupon Margin | E171: 0.006 | F171: 0.013 | G171: 0.02 | H171: 0.025 | I171: 0.0245
C172: Coupon Rate (3 month BBSW + margin) | E172: 0.0232 | F172: 0.0302 | G172: 0.0372 | H172: 0.0422 | I172: 0.0417
C173: Days in Coupon Period | E173: 92 | F173: 92 | G173: 92 | H173: 92 | I173: 92
C174: Coupon Entitlement to be paid out on the current Payment Date: 16 February 2018 | E174: 0 | F174: 615898.57 | G174: 105953.75 | H174: 111685.48 | I174: 65166.25
C177: TOTAL NOTE BALANCES
D178: Total Notes | E178: Class A1 Notes | F178: Class A2 Notes | G178: Class B Notes | H178: Class C Notes | I178: Class D Notes
C179: Initial Invested Amount | D179: =SUM(E179:I179) -> 331000000 | E179: 105000000 | F179: 198000000 | G179: 11300000 | H179: 10500000 | I179: 6200000
C180: Invested Amount as at Previous Payment Date: 16 February 2018 | D180: =SUM(E180:I180) -> 94644750.52 | E180: 0 | F180: 66644750.52 | G180: 11300000 | H180: 10500000 | I180: 6200000
C181: Stated Amount as at Previous Payment Date: 16 February 2018 | D181: 94644750.52 | E181: 0 | F181: 66644750.52 | G181: 11300000 | H181: 10500000 | I181: 6200000
C182: Principal Payments to Noteholders on Payment Date | D182: 38893734.19 | E182: 0 | F182: 38893734.19 | G182: 0 | H182: 0 | I182: 0
C183: Gross Aggregate Charge-Offs | D183: 0 | E183: 0 | F183: 0 | G183: 0 | H183: 0 | I183: 0
C184: Gross Aggregate Reinstatements of charge-offs | D184: 0 | E184: 0 | F184: 0 | G184: 0 | H184: 0 | I184: 0
C185: Aggregate Charge-Offs for this Collection Period | D185: -7.450580597e-09 | E185: 0 | F185: 0 | G185: 0 | H185: 0 | I185: 0
C186: Reinstatements relating to Charge-offs that have occurred this Collection Period | D186: 0 | E186: 0 | F186: 0 | G186: 0 | H186: 0 | I186: 0
C187: Aggregate Carry Over Charge-offs not previously reinstated | D187: 0 | E187: 0 | F187: 0 | G187: 0 | H187: 0 | I187: 0
C188: Reinstatements of Carry Over Charge-offs not previously reinstated | D188: 0 | E188: 0 | F188: 0 | G188: 0 | H188: 0 | I188: 0
C189: Aggregate Charge-Offs not reinstated and to be carried over to next period | D189: =SUM(D185:D188) -> -7.450580597e-09 | E189: 0 | F189: 0 | G189: 0 | H189: 0 | I189: 0
C190: Invested Amount as at Payment Date: 16 May 2018 | D190: =SUM(E190:I190) -> 55751016.33 | E190: 0 | F190: 27751016.33 | G190: 11300000 | H190: 10500000 | I190: 6200000
C191: Stated Amount as at Payment Date: 16 May 2018 | D191: 55751016.33 | E191: 0 | F191: 27751016.33 | G191: 11300000 | H191: 10500000 | I191: 6200000
C192: Bond Factor at Payment Date: 16 May 2018 | E192: 0 | F192: 0.1401566481 | G192: 1 | H192: 1 | I192: 1
C193: Coupon Margin | E193: 0.006 | F193: 0.013 | G193: 0.02 | H193: 0.025 | I193: 0.0245
C194: Coupon Rate (3 month BBSW + margin) | E194: 0.02365 | F194: 0.03065 | G194: 0.03765 | H194: 0.04265 | I194: 0.04215
C195: Days in Coupon Period | E195: 89 | F195: 89 | G195: 89 | H195: 89 | I195: 89
C196: Coupon Entitlement to be paid out on the current Payment Date: 16 May 2018 | E196: 0 | F196: 498073.65 | G196: 103738.64 | H196: 109195.68 | I196: 63721.56
C199: TOTAL NOTE BALANCES
D200: Total Notes | E200: Class A1 Notes | F200: Class A2 Notes | G200: Class B Notes | H200: Class C Notes | I200: Class D Notes
C201: Initial Invested Amount | D201: =SUM(E201:I201) -> 331000000 | E201: 105000000 | F201: 198000000 | G201: 11300000 | H201: 10500000 | I201: 6200000
C202: Invested Amount as at Previous Payment Date: 16 May 2018 | D202: =SUM(E202:I202) -> 55751016.33 | E202: 0 | F202: 27751016.33 | G202: 11300000 | H202: 10500000 | I202: 6200000
C203: Stated Amount as at Previous Payment Date: 16 May 2018 | D203: 55751016.33 | E203: 0 | F203: 27751016.33 | G203: 11300000 | H203: 10500000 | I203: 6200000
C204: Principal Payments to Noteholders on Payment Date | D204: 10427489.94 | E204: 0 | F204: 10427489.94 | G204: 0 | H204: 0 | I204: 0
C205: Gross Aggregate Charge-Offs | D205: =SUM(E205:J205) -> 0 | E205: 0 | F205: 0 | G205: 0 | H205: 0 | I205: 0
C206: Gross Aggregate Reinstatements of charge-offs | D206: 0 | E206: 0 | F206: 0 | G206: 0 | H206: 0 | I206: 0
C207: Aggregate Charge-Offs for this Collection Period | D207: 0 | E207: 0 | F207: 0 | G207: 0 | H207: 0 | I207: 0
C208: Reinstatements relating to Charge-offs that have occurred this Collection Period | D208: 0 | E208: 0 | F208: 0 | G208: 0 | H208: 0 | I208: 0
C209: Aggregate Carry Over Charge-offs not previously reinstated | D209: 0 | E209: 0 | F209: 0 | G209: 0 | H209: 0 | I209: 0
C210: Reinstatements of Carry Over Charge-offs not previously reinstated | D210: 0 | E210: 0 | F210: 0 | G210: 0 | H210: 0 | I210: 0
C211: Aggregate Charge-Offs not reinstated and to be carried over to next period | D211: 0 | E211: 0 | F211: 0 | G211: 0 | H211: 0 | I211: 0
C212: Invested Amount as at Payment Date: 16 August 2018 | D212: =SUM(E212:I212) -> 45323526.39 | E212: 0 | F212: 17323526.39 | G212: 11300000 | H212: 10500000 | I212: 6200000
C213: Stated Amount as at Payment Date: 16 August 2018 | D213: =SUM(E213:I213) -> 45323526.39 | E213: 0 | F213: 17323526.39 | G213: 11300000 | H213: 10500000 | I213: 6200000
C214: Bond Factor at Payment Date: 16 August 2018 | E214: 0 | F214: 0.08749255753 | G214: 1 | H214: 1 | I214: 1
C215: Coupon Margin | E215: 0.006 | F215: 0.013 | G215: 0.02 | H215: 0.025 | I215: 0.0245
C216: Coupon Rate (3 month BBSW + margin) | E216: 0.025 | F216: 0.032 | G216: 0.039 | H216: 0.044 | I216: 0.0435
C217: Days in Coupon Period | E217: 92 | F217: 92 | G217: 92 | H217: 92 | I217: 92
C218: Coupon Entitlement to be paid out on the current Payment Date: 16 August 2018 | E218: 0 | F218: 223832.86 | G218: 111080.55 | H218: 116449.32 | I218: 67979.18
... 20 more rows

Sheet Cumulative Defaults
A1: Cumulative Defaults & Losses
A3: Month | B3: Gross Losses | C3: Recoveries | D3: Net Losses
A4: 2016-04-01 | B4: 0.0002401891714 | C4: 0 | D4: =B4-C4 -> 0.0002401891714
A5: 2016-07-01 | B5: 0.001256326114 | C5: -2.479311429e-05 | D5: 0.001281119229
A6: 2016-10-01 | B6: 0.001256326114 | C6: 0.0002342489429 | D6: 0.001022077171
A7: 2017-01-01 | B7: 0.001256326114 | C7: 0.0002912489429 | D7: 0.0009650771714
A8: 2017-04-01 | B8: 0.001293566286 | C8: 0.000425111 | D8: 0.0008684552857
A9: 2017-07-01 | B9: 0.001293566286 | C9: 0.0005589730571 | D9: 0.0007345932286
A10: 2017-10-01 | B10: 0.002381869914 | C10: 0.0005875444857 | D10: 0.001794325429
A11: 2018-01-01 | B11: 0.003043033086 | C11: 0.0017731556 | D11: 0.001269877486
A12: 2018-04-01 | B12: 0.003043033086 | C12: 0.002557058457 | D12: 0.0004859746286
A13: 2018-07-01 | B13: 0.003043033086 | C13: 0.002557058457 | D13: 0.0004859746286
A14: 2018-10-01 | B14: =B13+'Collateral Tables'!E9/350000000 -> 0.003043033086 | C14: =+C13+'Collateral Tables'!E23/350000000 -> 0.002557058457 | D14: =B14-C14 -> 0.0004859746286

Sheet Collateral Tables
B1: CNH CAPITAL AUSTRALIA RECEIVABLES TRUST SERIES 2016-1 (TERM DEAL)
B2: COLLATERAL DATA TABLES
B4: OUTSTANDING RECEIVABLES | E4: 2018-10-31 | I4: 2018-07-31 | M4: 2018-04-30 | Q4: 2018-01-31 | U4: 2017-10-31 | Y4: 2017-07-31 | AC4: 2017-04-30 | AG4: 2017-01-31 | AK4: 2016-10-31 | AO4: 2016-07-31 | AS4: 2016-04-30
B6: Opening Balance | E6: =I13 -> 63258464.81 | I6: 73685954.75 | M6: 112579688.9 | Q6: 127077294.2 | U6: 143113632.8 | Y6: 160400376 | AC6: 213875093.1 | AG6: 232985064.8 | AK6: 253371003.9 | AO6: 275076134.5 | AS6: 349999833.4
B7: Principal Repayments - Scheduled | E7: =MIN('[1]16 Nov 18'!M156,SUM([2]Sheet1!$B$3+[3]Sheet1!$B$3+[4]Sheet1!$B$3)) -> 6829749.74 | I7: 9010185.31 | M7: 37756769.78 | Q7: 12294141.17 | U7: 10996073.13 | Y7: 14256110.44 | AC7: 51949874.48 | AG7: 19109971.65 | AK7: 13038858.94 | AO7: 18368178.68 | AS7: 70539694.68
B8: Principal Repayments - Unscheduled | E8: ='[1]16 Nov 18'!$H$23-'Collateral Tables'!E7 -> 1368520.98 | I8: 1417304.63 | M8: 1136964.41 | Q8: 1972056.94 | U8: 4659359.24 | Y8: 3030632.8 | AC8: 1511808.56 | AG8: 0 | AK8: 7347080.2 | AO8: 2981303.99 | AS8: 4299938
A9: =SUM(AO9:AS9) -> 439714.14 | B9: Charge-Offs | E9: ='[1]16 Nov 18'!$H37 -> 0 | I9: 0 | M9: 0 | Q9: 231407.11 | U9: 380906.27 | Y9: 0 | AC9: 13034.06 | AG9: 0 | AK9: 0 | AO9: 355647.93 | AS9: 84066.21
B10: Reinstatements
B11: New Receivables Purchased
B12: Non Cash Change in Receivables
B13: Closing Balance | E13: =E6-E7-E8-E9+E10+E11-E12 -> 55060194.09 | I13: 63258464.81 | M13: 73685954.75 | Q13: 112579688.9 | U13: 127077294.2 | Y13: 143113632.8 | AC13: 160400376 | AG13: 213875093.1 | AK13: 232985064.8 | AO13: 253371003.9 | AS13: 275076134.5
B15: PORTFOLIO STATISTICS
B17: Summary
B18: Number of contracts | E18: =[5]Summary!$B$4 -> 1208 | I18: 1436 | M18: 1693 | Q18: 2074 | U18: 2233 | Y18: 2472 | AC18: 2690 | AG18: 3006 | AK18: 3133 | AO18: 3263 | AS18: 3422
B19: Average Dollar Value of Loans | E19: =[5]Summary!$B$6 -> 45579.63087 | I19: 44051.85572 | M19: 43523.8953 | Q19: 54281.4315 | U19: 56908.77481 | Y19: 57893.8644 | AC19: 59628.39258 | AG19: 71149.39892 | AK19: 74364.84673 | AO19: 77649.71006 | AS19: 80384.60974
B20: Number of contracts closed during the Quarter | E20: =[5]Summary!$B$19 -> 228 | I20: 257 | M20: 381 | Q20: 157 | U20: 238 | Y20: 218 | AC20: 315 | AG20: 127 | AK20: 130 | AO20: 157 | AS20: 216
B21: Dollar value of contracts closed during the Quarter | E21: =[5]Summary!$B$20 -> 4167402.64 | I21: 4804492.91 | M21: 13453522.93 | Q21: 4423245.9 | U21: 7890618.49 | Y21: 6562238.06 | AC21: 11939537.53 | AG21: 4405939.96 | AK21: 8722235.73 | AO21: 5997812.86 | AS21: 10129289.88
A23: =SUM(AS23) -> 0 | B23: Dollar Value of Recoveries from Collateral | E23: =[5]Summary!$C$16 -> 0 | I23: 0 | M23: 274366 | Q23: 414963.89 | U23: 10000 | Y23: 69482.69 | AC23: 46851.72 | AG23: 19950 | AK23: 90664.72 | AO23: -8677.59 | AS23: 0
B24: Dollar Value of Recoveries from Other Sources | E24: 0 | I24: 0 | M24: 0 | Q24: 0 | U24: 0 | Y24: 0 | AC24: 0 | AG24: 0 | AK24: 0 | AO24: 0 | AS24: 0
B26: Average Term of Contracts (Months) | E26: =[6]Sheet1!$W$1210 -> 55.5886967 | I26: 55.21601874 | M26: 54.80965066 | Q26: 53.53655221 | U26: 53.16523463 | Y26: 52.80816779 | AC26: 52.44867067 | AG26: 51.54865904 | AK26: 51.22126898 | AO26: 50.9050185 | AS26: 50.60256169
B27: Average Term to Maturity (Months) | E27: =[6]Sheet1!$X$1210 -> 12.36214182 | I27: 14.84870025 | M27: 17.19884056 | Q27: 18.01460567 | U27: 20.35237625 | Y27: 22.77248451 | AC27: 25.1118199 | AG27: 26.29838503 | AK27: 28.79606226 | AO27: 31.26182456 | AS27: 33.58014303
B28: Average Residual / Balloon Payment * | E28: =[6]Sheet1!$AI$1210 -> 0.02702194433 | I28: 0.02649690649 | M28: 0.02853675748 | Q28: 0.02199272019 | U28: 0.02061878057 | Y28: 0.02233497557 | AC28: 0.02275167597 | AG28: 0.01966287021 | AK28: 0.01994771521 | AO28: 0.02262999179 | AS28: 0.02404080908
B29: Average Seasoning (Months) | E29: =E26-E27 -> 43.22655488 | I29: 40.36731849 | M29: 37.61081009 | Q29: 35.52194653 | U29: 32.81285837 | Y29: 30.03568328 | AC29: 27.33685077 | AG29: 25.25027401 | AK29: 22.42520672 | AO29: 19.64319394 | AS29: 17.02241867
B30: Average Dollar Value of Individual Assets | E30: =E19/E18 -> 37.73148251 | I30: 30.67677975 | M30: 25.70814844 | Q30: 26.1723392 | U30: 25.48534474 | Y30: 23.41984806 | AC30: 22.16668869 | AG30: 23.66912805 | AK30: 23.73598683 | AO30: 23.79703036 | AS30: 23.4905347
B31: Weighted Average Interest Rate | E31: =[6]Sheet1!$AA$1210/100 -> 0.03482620019 | I31: 0.03481221404 | M31: 0.03487681768 | Q31: 0.03508781028 | U31: 0.03549832768 | Y31: 0.03571777102 | AC31: 0.03584377434 | AG31: 0.03613732386 | AK31: 0.0362440896 | AO31: 0.03646223799 | AS31: 0.03665547144
B33: Payment in Arrears
A34: 1. 0 - 30 Days | B34: 0 - 30 Days | E34: =IFERROR(VLOOKUP($A34,'[7]Arrears Reporting'!$A$1:$D$6,3,FALSE),0) -> 1200 | F34: =IFERROR(VLOOKUP($A34,'[7]Arrears Reporting'!$A$1:$D$5,2,FALSE),0) -> 15032.54 | G34: =F34/F$50 -> 0.0002730201055 | I34: 1433 | J34: 52325.42 | K34: 0.0008271686668 | M34: 1687 | N34: 111762.89 | O34: 0.001516746175 | Q34: 2069 | R34: 31286.35 | S34: 0.0002779040366 | U34: 2221 | V34: 48260.54 | W34: 0.0003797731162 | Y34: 2463 | Z34: 31851.47 | AA34: 0.0002225606979 | AC34: 2677 | AD34: 243095.86 | AE34: 0.001515556671 | AG34: 2997 | AH34: 43406.45 | AI34: 0.0002029523371 | AK34: 3124 | AL34: 20933.36 | AM34: 8.984850604e-05 | AO34: 3255 | AP34: 120639.01 | AQ34: 0.0004761358172 | AS34: 3409 | AT34: 279917.05 | AU34: 0.001017598457
A35: 2. 31 - 60 Days | B35: 31 - 60 Days | E35: =IFERROR(VLOOKUP($A35,'[7]Arrears Reporting'!$A$1:$D$6,3,FALSE),0) -> 3 | F35: =IFERROR(VLOOKUP($A35,'[7]Arrears Reporting'!$A$1:$D$5,2,FALSE),0) -> 206132.85 | G35: =F35/F$50 -> 0.003743772673 | I35: 3 | J35: 110344.49 | K35: 0.00174434347 | M35: 5 | N35: 165307.79 | O35: 0.002243409759 | Q35: 3 | R35: 27999.16 | S35: 0.0002487052528 | U35: 7 | V35: 118171.86 | W35: 0.0009299211223 | Y35: 2 | Z35: 46643.61 | AA35: 0.0003259201034 | AC35: 8 | AD35: 242973.25 | AE35: 0.001514792272 | AG35: 2 | AH35: 63265.99 | AI35: 0.0002958081237 | AK35: 6 | AL35: 106352.71 | AM35: 0.0004564786592 | AO35: 3 | AP35: 46074.11 | AQ35: 0.0001818444466 | AS35: 8 | AT35: 230113.48 | AU35: 0.0008365446911
A36: 3. 61 - 90 Days | B36: 61 - 90 Days | E36: =IFERROR(VLOOKUP($A36,'[7]Arrears Reporting'!$A$1:$D$6,3,FALSE),0) -> 2 | F36: =IFERROR(VLOOKUP($A36,'[7]Arrears Reporting'!$A$1:$D$5,2,FALSE),0) -> 35953.61 | G36: 0.0006529873458 | I36: 0 | J36: 0 | K36: 0 | M36: 1 | N36: 3042.88 | O36: 4.129525105e-05 | Q36: 2 | R36: 21324.73 | S36: 0.0001894189814 | U36: 3 | V36: 113940.22 | W36: 0.000896621389 | Y36: 2 | Z36: 23394.39 | AA36: 0.0001634672361 | AC36: 3 | AD36: 16262.82 | AE36: 0.0001013889144 | AG36: 6 | AH36: 45416.01 | AI36: 0.0002123482886 | AK36: 0 | AL36: 0 | AM36: 0 | AO36: 4 | AP36: 60200 | AQ36: 0.0002375962485 | AS36: 3 | AT36: 35237.55 | AU36: 0.0001281010803
A37: 4. 91 - 120 Days | B37: 91 - 120 Days | E37: =IFERROR(VLOOKUP($A37,'[7]Arrears Reporting'!$A$1:$D$6,3,FALSE),0) -> 1 | F37: =IFERROR(VLOOKUP($A37,'[7]Arrears Reporting'!$A$1:$D$5,2,FALSE),0) -> 4371.56 | G37: 7.939601507e-05 | I37: 0 | J37: 0 | K37: 0 | M37: 0 | N37: 0 | O37: 0 | Q37: 0 | R37: 0 | S37: 0 | U37: 2 | V37: 27079.12 | W37: 0.0002130917264 | Y37: 3 | Z37: 25252.48 | AA37: 0.0001764505554 | AC37: 2 | AD37: 106676.21 | AE37: 0.0006650620942 | AG37: 0 | AH37: 0 | AI37: 0 | AK37: 3 | AL37: 19683.8 | AM37: 8.44852438e-05 | AO37: 0 | AP37: 0 | AQ37: 0 | AS37: 1 | AT37: 48099.14 | AU37: 0.0001748575538
A38: 5. 121 - 150 Days | B38: 121 - 150 Days | E38: =IFERROR(VLOOKUP($A38,'[7]Arrears Reporting'!$A$1:$D$6,3,FALSE),0) -> 2 | F38: =IFERROR(VLOOKUP($A38,'[7]Arrears Reporting'!$A$1:$D$5,2,FALSE),0) -> 0 | G38: 0 | I38: 0 | J38: 0 | K38: 0 | M38: 0 | N38: 0 | O38: 0 | Q38: 0 | R38: 0 | S38: 0 | U38: 0 | V38: 0 | W38: 0 | Y38: 2 | Z38: 0 | AA38: 0 | AC38: 0 | AD38: 0 | AE38: 0 | AG38: 1 | AH38: 2664.4 | AI38: 1.245773858e-05 | AK38: 0 | AL38: 0 | AM38: 0 | AO38: 1 | AP38: 5363.45 | AQ38: 2.116836543e-05 | AS38: 1 | AT38: 30045.72 | AU38: 0.0001092269239
A39: 6. 151 - 180 Days | B39: 151 - 180 Days | E39: =IFERROR(VLOOKUP($A39,'[7]Arrears Reporting'!$A$1:$D$6,3,FALSE),0) -> 0 | F39: =IFERROR(VLOOKUP($A39,'[7]Arrears Reporting'!$A$1:$D$5,2,FALSE),0) -> 0 | G39: 0 | I39: 0 | J39: 0 | K39: 0 | M39: 0 | N39: 0 | O39: 0 | Q39: 0 | R39: 0 | S39: 0 | U39: 0 | V39: 0 | W39: 0 | Y39: 0 | Z39: 0 | AA39: 0 | AC39: 0 | AD39: 0 | AE39: 0 | AG39: 0 | AH39: 0 | AI39: 0 | AK39: 0 | AL39: 0 | AM39: 0 | AO39: 0 | AP39: 0 | AQ39: 0 | AS39: 0 | AT39: 0 | AU39: 0
B40: Total | E40: =SUM(E34:E39) -> 1208 | F40: =SUM(F34:F39) -> 261490.56 | G40: =SUM(G34:G39) -> 0.004749176139 | I40: 1436 | J40: 162669.91 | K40: 0.002571512137 | M40: 1693 | N40: 280113.56 | O40: 0.003801451185 | Q40: 2074 | R40: 80610.24 | S40: 0.0007160282708 | U40: 2233 | V40: 307451.74 | W40: 0.002419407354 | Y40: 2472 | Z40: 127141.95 | AA40: 0.0008883985929 | AC40: 2690 | AD40: 609008.14 | AE40: 0.003796799952 | AG40: 3006 | AH40: 154752.85 | AI40: 0.0007235664879 | AK40: 3133 | AL40: 146969.87 | AM40: 0.0006308124091 | AO40: 3263 | AP40: 232276.57 | AQ40: 0.0009167448777 | AS40: 3422 | AT40: 623412.94 | AU40: 0.002266328706
B41: * Expressed as a % of Aggreg. Rec. closing bal. | F41: > 30 days | G41: =SUM(G35:G39) -> 0.004476156034 | J41: > 30 days | K41: 0.00174434347 | N41: > 30 days | O41: 0.00228470501 | R41: > 30 days | S41: 0.0004381242342 | V41: > 30 days | W41: 0.002039634238 | Z41: > 30 days | AA41: 0.0006658378949 | AD41: > 30 days | AE41: 0.00228124328 | AH41: > 30 days | AI41: 0.0005206141508 | AL41: > 30 days | AM41: 0.000540963903 | AP41: > 30 days | AQ41: 0.0004406090605 | AT41: > 30 days | AU41: 0.001248730249
A43: 0 - 30 Days | B43: Account Balances in Arrears
A44: 1. 0 - 30 Days | B44: 0 - 30 Days | E44: =IFERROR(VLOOKUP($A44,'[7]Arrears Reporting'!$A$1:$D$6,3,FALSE),0) -> 1200 | F44: =IFERROR(VLOOKUP($A44,'[7]Arrears Reporting'!$A$1:$D$6,4,FALSE),0) -> 54706772.93 | G44: =F44/F$50 -> 0.9935811857 | I44: 1433 | J44: 63031713.9 | K44: 0.9964154851 | M44: 1687 | N44: 73167476.74 | O44: 0.9929636793 | Q44: 2069 | R44: 112464915.8 | S44: 0.9989805162 | U44: 2221 | V44: 126403021.4 | W44: 0.9946939947 | Y44: 2463 | Z44: 142412596.7 | AA44: 0.9951015418 | AC44: 2677 | AD44: 159431409 | AE44: 0.9939590727 | AG44: 2997 | AH44: 213516548.5 | AI44: 0.9983235792 | AK44: 3124 | AL44: 232540319.8 | AM44: 0.9980911009 | AO44: 3255 | AP44: 252870428.1 | AQ44: 0.9980243366 | AS44: 3409 | AT44: 273901148.8 | AU44: 0.9957285071
A45: 2. 31 - 60 Days | B45: 31 - 60 Days | E45: =IFERROR(VLOOKUP($A45,'[7]Arrears Reporting'!$A$1:$D$6,3,FALSE),0) -> 3 | F45: =IFERROR(VLOOKUP($A45,'[7]Arrears Reporting'!$A$1:$D$6,4,FALSE),0) -> 213175.06 | G45: =F45/F$50 -> 0.003871672876 | I45: 3 | J45: 226750.91 | K45: 0.003584514905 | M45: 5 | N45: 515588.06 | O45: 0.006997100896 | Q45: 3 | R45: 94573.13 | S45: 0.0008400549947 | U45: 7 | V45: 264948.57 | W45: 0.002084940286 | Y45: 2 | Z45: 73271.93 | AA45: 0.0005119842783 | AC45: 8 | AD45: 623157.59 | AE45: 0.003885013274 | AG45: 2 | AH45: 75656.24 | AI45: 0.0003537403018 | AK45: 6 | AL45: 225774.02 | AM45: 0.000969049326 | AO45: 3 | AP45: 122576.48 | AQ45: 0.000483782588 | AS45: 8 | AT45: 698753.64 | AU45: 0.00254021906
A46: 3. 61 - 90 Days | B46: 61 - 90 Days | E46: =IFERROR(VLOOKUP($A46,'[7]Arrears Reporting'!$A$1:$D$6,3,FALSE),0) -> 2 | F46: =IFERROR(VLOOKUP($A46,'[7]Arrears Reporting'!$A$1:$D$6,4,FALSE),0) -> 98805.03 | G46: 0.001794491132 | I46: 0 | J46: 0 | K46: 0 | M46: 1 | N46: 2889.95 | O46: 3.92198216e-05 | Q46: 2 | R46: 20200.04 | S46: 0.0001794288134 | U46: 3 | V46: 274282.7 | W46: 0.002158392668 | Y46: 2 | Z46: 65860.91 | AA46: 0.0004602001131 | AC46: 3 | AD46: 114402.29 | AE46: 0.0007132295623 | AG46: 6 | AH46: 269854.36 | AI46: 0.00126173813 | AK46: 0 | AL46: 0 | AM46: 0 | AO46: 4 | AP46: 366338.58 | AQ46: 0.001445858343 | AS46: 3 | AT46: 107754.56 | AU46: 0.0003917263131
A47: 4. 91 - 120 Days | B47: 91 - 120 Days | E47: =IFERROR(VLOOKUP($A47,'[7]Arrears Reporting'!$A$1:$D$6,3,FALSE),0) -> 1 | F47: =IFERROR(VLOOKUP($A47,'[7]Arrears Reporting'!$A$1:$D$6,4,FALSE),0) -> 19485.92 | G47: =F47/F$50 -> 0.0003539021306 | I47: 0 | J47: 0 | K47: 0 | M47: 0 | N47: 0 | O47: 0 | Q47: 0 | R47: 0 | S47: 0 | U47: 2 | V47: 135041.53 | W47: 0.001062672375 | Y47: 3 | Z47: 157059.64 | AA47: 0.001097447091 | AC47: 2 | AD47: 231407.13 | AE47: 0.001442684461 | AG47: 0 | AH47: 0 | AI47: 0 | AK47: 3 | AL47: 218970.95 | AM47: 0.000939849729 | AO47: 0 | AP47: 0 | AQ47: 0 | AS47: 1 | AT47: 84424.18 | AU47: 0.0003069120487
A48: 5. 121 - 150 Days | B48: 121 - 150 Days | E48: =IFERROR(VLOOKUP($A48,'[7]Arrears Reporting'!$A$1:$D$6,3,FALSE),0) -> 2 | F48: =IFERROR(VLOOKUP($A48,'[7]Arrears Reporting'!$A$1:$D$6,4,FALSE),0) -> 21955.15 | G48: =F48/F$50 -> 0.0003987481403 | I48: 0 | J48: 0 | K48: 0 | M48: 0 | N48: 0 | O48: 0 | Q48: 0 | R48: 0 | S48: 0 | U48: 0 | V48: 0 | W48: 0 | Y48: 2 | Z48: 404843.67 | AA48: 0.002828826731 | AC48: 0 | AD48: 0 | AE48: 0 | AG48: 1 | AH48: 13034.06 | AI48: 6.09423931e-05 | AK48: 0 | AL48: 0 | AM48: 0 | AO48: 1 | AP48: 11660.76 | AQ48: 4.602247226e-05 | AS48: 1 | AT48: 284053.38 | AU48: 0.001032635494
A49: 6. 151 - 180 Days | B49: 151 - 180 Days | E49: =IFERROR(VLOOKUP($A49,'[7]Arrears Reporting'!$A$1:$D$6,3,FALSE),0) -> 0 | F49: =IFERROR(VLOOKUP($A49,'[7]Arrears Reporting'!$A$1:$D$6,4,FALSE),0) -> 0 | G49: =F49/F$50 -> 0 | I49: 0 | J49: 0 | K49: 0 | M49: 0 | N49: 0 | O49: 0 | Q49: 0 | R49: 0 | S49: 0 | U49: 0 | V49: 0 | W49: 0 | Y49: 0 | Z49: 0 | AA49: 0 | AC49: 0 | AD49: 0 | AE49: 0 | AG49: 0 | AH49: 0 | AI49: 0 | AK49: 0 | AL49: 0 | AM49: 0 | AO49: 0 | AP49: 0 | AQ49: 0 | AS49: 0 | AT49: 0 | AU49: 0
B50: Total | E50: =SUM(E44:E49) -> 1208 | F50: =SUM(F44:F49) -> 55060194.09 | G50: =SUM(G44:G49) -> 1 | I50: 1436 | J50: 63258464.81 | K50: 1 | M50: 1693 | N50: 73685954.75 | O50: 1 | Q50: 2074 | R50: 112579688.9 | S50: 1 | U50: 2233 | V50: 127077294.2 | W50: 1 | Y50: 2472 | Z50: 143113632.8 | AA50: 1 | AC50: 2690 | AD50: 160400376 | AE50: 1 | AG50: 3006 | AH50: 213875093.1 | AI50: 1 | AK50: 3133 | AL50: 232985064.8 | AM50: 1 | AO50: 3263 | AP50: 253371003.9 | AQ50: 1 | AS50: 3422 | AT50: 275076134.5 | AU50: 1
A51: NSW | F51: > 30 days | G51: =SUM(G45:G49) -> 0.006418814278 | J51: > 30 days | K51: 0.003584514905 | N51: > 30 days | O51: 0.007036320718 | R51: > 30 days | S51: 0.001019483808 | V51: > 30 days | W51: 0.005306005329 | Z51: > 30 days | AA51: 0.004898458213 | AD51: > 30 days | AE51: 0.006040927297 | AH51: > 30 days | AI51: 0.001676420825 | AL51: > 30 days | AM51: 0.001908899055 | AP51: > 30 days | AQ51: 0.001975663404 | AT51: > 30 days | AU51: 0.004271492916
F52: >90 days | G52: =SUM(G47:G49) -> 0.0007526502709 | J52: >90 days | K52: 0 | N52: >90 days | O52: 0 | R52: >90 days | S52: 0 | V52: >90 days | W52: 0.001062672375 | Z52: >90 days | AA52: 0.003926273822 | AD52: >90 days | AE52: 0.001442684461 | AH52: >90 days | AI52: 6.09423931e-05 | AL52: >90 days | AM52: 0.000939849729 | AP52: >90 days | AQ52: 4.602247226e-05 | AT52: >90 days | AU52: 0.001339547542
A54: VIC | B54: Geographic Distribution
A55: NSW | B55: New South Wales | E55: =F55/F$63 -> 0.2713134704 | F55: =IFERROR(VLOOKUP($A$55,'[7]Geographic '!$A$1:$C$10,3,FALSE),0) -> 14938572.34 | I55: 0.2823147311 | J55: 17858796.48 | M55: 0.2930457955 | N55: 21593359.23 | Q55: 0.2764042433 | R55: 31117503.73 | U55: 0.2757453 | V55: 35040966.6 | Y55: 0.2826497624 | Z55: 40451034.31 | AC55: 0.2934838262 | AD55: 47074916.08 | AG55: 0.2828012143 | AH55: 60484136.05 | AK55: 0.2847996319 | AL55: 66354060.69 | AO55: 0.2911050372 | AP55: 73757575.52 | AS55: 0.2970537644 | AT55: 81712401.25
A56: VIC | B56: Victoria | E56: =F56/F$63 -> 0.1915375386 | F56: =IFERROR(VLOOKUP($A$56,'[7]Geographic '!$A$1:$C$10,3,FALSE),0) -> 10546094.05 | I56: 0.1901545751 | J56: 12028886.5 | M56: 0.1960238798 | N56: 14444206.74 | Q56: 0.1812418477 | R56: 20404150.84 | U56: 0.1755692441 | V56: 22310864.48 | Y56: 0.1778107015 | Z56: 25447135.44 | AC56: 0.1822861718 | AD56: 29238770.51 | AG56: 0.1749932789 | AH56: 37426703.82 | AK56: 0.1751804458 | AL56: 40814427.52 | AO56: 0.1752908631 | AP56: 44413621.96 | AS56: 0.1802248851 | AT56: 49575564.73
A57: QLD | B57: Queensland | E57: 0.09077568346 | F57: =IFERROR(VLOOKUP($A$57,'[7]Geographic '!$A$1:$C$10,3,FALSE),0) -> 4998126.75 | I57: 0.1027431453 | J57: 6499373.64 | M57: 0.1111196303 | N57: 8187956.05 | Q57: 0.09162811336 | R57: 10315464.5 | U57: 0.09744450322 | V57: 12382983.8 | Y57: 0.1063298687 | Z57: 15217253.78 | AC57: 0.1119170805 | AD57: 17951541.8 | AG57: 0.09963114408 | AH57: 21308620.22 | AK57: 0.1043373745 | AL57: 24309049.96 | AO57: 0.1134562463 | AP57: 28746523.03 | AS57: 0.117573273 | AT57: 32341601.47
A58: SA | B58: South Australia | E58: 0.2127146143 | F58: =IFERROR(VLOOKUP($A$58,'[7]Geographic '!$A$1:$C$10,3,FALSE),0) -> 11712107.95 | I58: 0.2047396224 | J58: 12951514.2 | M58: 0.1970901753 | N58: 14522777.74 | Q58: 0.2135878757 | R58: 24045656.61 | U58: 0.2050178906 | V58: 26053118.79 | Y58: 0.1968542873 | Z58: 28172532.19 | AC58: 0.1895095381 | AD58: 30397401.17 | AG58: 0.1995401448 | AH58: 42676667.05 | AK58: 0.1917387326 | AL58: 44672261.03 | AO58: 0.1845992436 | AP58: 46772095.68 | AS58: 0.1791939462 | AT58: 49291978.05
A59: NT | B59: Northern Territory | E59: 0.0006471827895 | F59: =IFERROR(VLOOKUP($A$59,'[7]Geographic '!$A$1:$C$10,3,FALSE),0) -> 35634.01 | I59: 0.0005633081692 | J59: 35634.01 | M59: 0.000483592974 | N59: 35634.01 | Q59: 0.0006299282816 | R59: 70917.13 | U59: 0.0005580629527 | V59: 70917.13 | Y59: 0.0004955302204 | Z59: 70917.13 | AC59: 0.0004421257091 | AD59: 70917.13 | AG59: 0.000494928224 | AH59: 105852.82 | AK59: 0.0004543330711 | AL59: 105852.82 | AO59: 0.0004177779555 | AP59: 105852.82 | AS59: 0.0003848128089 | AT59: 105852.82
A60: ACT | B60: Australian Capital Territory | E60: 0 | F60: =IFERROR(VLOOKUP($A$60,'[7]Geographic '!$A$1:$C$10,3,FALSE),0) -> 0 | I60: 0 | J60: 0 | M60: 0 | N60: 0 | Q60: 0 | R60: 0 | U60: 0 | V60: 0 | Y60: 0 | Z60: 0 | AC60: 0 | AD60: 0 | AG60: 0.0002095148591 | AH60: 44810.01 | AK60: 0.0002162085799 | AL60: 50373.37 | AO60: 0.0002204757416 | AP60: 55862.16 | AS60: 0.0002227655994 | AT60: 61277.5
A61: TAS | B61: Tasmania | E61: 0.004491697207 | F61: =IFERROR(VLOOKUP($A$61,'[7]Geographic '!$A$1:$C$10,3,FALSE),0) -> 247313.72 | I61: 0.006041742574 | J61: 382191.36 | M61: 0.007717905698 | N61: 568701.25 | Q61: 0.006703664374 | R61: 754696.45 | U61: 0.007446589229 | V61: 946292.41 | Y61: 0.008353068723 | Z61: 1195438.01 | AC61: 0.009115631497 | AD61: 1462150.72 | AG61: 0.008105523811 | AH61: 1733569.66 | AK61: 0.008594931103 | AL61: 2002490.58 | AO61: 0.008849920019 | AP61: 2242313.12 | AS61: 0.009794302456 | AT61: 2694178.86
A62: WA | B62: Western Australia | E62: 0.2285198132 | F62: =IFERROR(VLOOKUP($A$62,'[7]Geographic '!$A$1:$C$10,3,FALSE),0) -> 12582345.27 | I62: 0.2134428754 | J62: 13502068.62 | M62: 0.1945190203 | N62: 14333319.73 | Q62: 0.2298043273 | R62: 25871299.68 | U62: 0.2382184099 | V62: 30272150.95 | Y62: 0.2275067812 | Z62: 32559321.94 | AC62: 0.2132456262 | AD62: 34204678.63 | AG62: 0.2342242511 | AH62: 50094733.51 | AK62: 0.2346783424 | AL62: 54676548.82 | AO62: 0.2260604361 | AP62: 57277159.64 | AS62: 0.2155522505 | AT62: 59293279.85
B63: Total | E63: =SUM(E55:E62) -> 1 | F63: =SUM(F55:F62) -> 55060194.09 | I63: 1 | J63: 63258464.81 | M63: 1 | N63: 73685954.75 | Q63: 1 | R63: 112579688.9 | U63: 1 | V63: 127077294.2 | Y63: 1 | Z63: 143113632.8 | AC63: 1 | AD63: 160400376 | AG63: 1 | AH63: 213875093.1 | AK63: 1 | AL63: 232985064.8 | AO63: 1 | AP63: 253371003.9 | AS63: 1 | AT63: 275076134.5
A64: AG | G64: =E13-F63 -> 1.639127731e-07 | K64: 1.713633537e-07 | O64: 1.788139343e-07 | S64: 1.937150955e-07 | W64: 2.384185791e-07 | AA64: 2.384185791e-07 | AE64: 0 | AI64: 0 | AM64: 0 | AQ64: 0 | AU64: 275076134.5
A65: CE | B65: Top Industry Distribution
A66: AGRICULTURAL MACHINERY | B66: Agricultural | E66: =F66/F$69 -> 0.994413201 | F66: =IFERROR(VLOOKUP($A$66,'[7]Top Industry'!$A$1:$C$5,3,FALSE),) -> 54752583.85 | I66: 0.9933092293 | J66: 62835216.93 | M66: 0.9907365531 | N66: 73003368.82 | Q66: 0.9914645481 | R66: 111618770.4 | U66: 0.9905162178 | V66: 125872120.8 | Y66: 0.989455162 | Z66: 141604522.7 | AC66: 0.9877725233 | AD66: 158439084.2 | AG66: 0.9885104416 | AH66: 211417762.8 | AK66: 0.987458344 | AL66: 230063046.2 | AO66: 0.986693672 | AP66: 249999566.2 | AS66: 0.9852200433 | AT66: 271010521.2
A67: CONSTRUCTION EQUIPMENT | B67: Construction | E67: =F67/F$69 -> 0.005586799049 | F67: =IFERROR(VLOOKUP($A$67,'[7]Top Industry'!$A$1:$C$5,3,FALSE),) -> 307610.24 | I67: 0.006690770655 | J67: 423247.88 | M67: 0.009263446912 | N67: 682585.93 | Q67: 0.008535451901 | R67: 960918.52 | U67: 0.009483782197 | V67: 1205173.38 | Y67: 0.01054483805 | Z67: 1509110.08 | AC67: 0.0122274767 | AD67: 1961291.86 | AG67: 0.01148955843 | AH67: 2457330.38 | AK67: 0.01254165602 | AL67: 2922018.54 | AO67: 0.01330632798 | AP67: 3371437.68 | AS67: 0.01477995671 | AT67: 4065613.36
A68: MOTOR VEHICLE - AG | B68: Motor Vehicle AG | E68: =F68/F$69 -> 0 | F68: =IFERROR(VLOOKUP($A$68,'[7]Top Industry'!$A$1:$C$5,3,FALSE),) -> 0 | I68: 0 | J68: 0 | M68: 0 | N68: 0 | Q68: 0 | R68: 0 | U68: 0 | V68: 0 | Y68: 0 | Z68: 0 | AC68: 0 | AD68: 0 | AG68: 0 | AH68: 0 | AK68: 0 | AL68: 0 | AO68: 0 | AP68: 0 | AS68: 0 | AT68: 0
B69: Total | E69: =SUM(E66:E68) -> 1 | F69: =SUM(F66:F68) -> 55060194.09 | G69: =F63-F69 -> -1.043081284e-07 | I69: 1 | J69: 63258464.81 | K69: -1.266598701e-07 | M69: 1 | N69: 73685954.75 | O69: 0 | Q69: 1 | R69: 112579688.9 | S69: 0 | U69: 1 | V69: 127077294.2 | W69: 0 | Y69: 1 | Z69: 143113632.8 | AA69: -3.278255463e-07 | AC69: 1 | AD69: 160400376 | AE69: -3.576278687e-07 | AG69: 1 | AH69: 213875093.1 | AI69: 0 | AK69: 1 | AL69: 232985064.8 | AM69: 3.87430191e-07 | AO69: 1 | AP69: 253371003.9 | AQ69: 5.066394806e-07 | AS69: 1 | AT69: 275076134.5 | AU69: -275076134.5
A70: COMBINE
A71: 40-100 HP TRACTOR | B71: Collateral Types
A72: 100<140 HP TRACTOR | B72: 100-140 HP TRACTOR | E72: =IFERROR(F72/F$107,0) -> 0.0916946508 | F72: =IFERROR(VLOOKUP($A$72,[7]Collateral!$A$1:$C$30,3,FALSE),"") -> 5048725.27 | I72: 0.1045384064 | J72: 6612939.1 | M72: 0.1124364912 | N72: 8284990.2 | Q72: 0.09665411667 | R72: 10881290.39 | U72: 0.1003657463 | V72: 12754207.47 | Y72: 0.1038544678 | Z72: 14862990.17 | AC72: 0.1085354197 | AD72: 17409122.13 | AG72: 0.09789891989 | AH72: 20938140.61 | AK72: 0.101170271 | AL72: 23571162.15 | AO72: 0.1031342089 | AP72: 26131218.04 | AS72: 0.1070289451 | AT72: 29441108.51
A73: 4 EWD Tractors | B73: 4 EWD Tractors | E73: 0.1267109153 | F73: =IFERROR(VLOOKUP($A$73,[7]Collateral!$A$1:$C$30,3,FALSE),"") -> 6976727.59 | I73: 0.1176338233 | J73: 7441335.07 | M73: 0.1125015341 | N73: 8289782.95 | Q73: 0.1245230684 | R73: 14018768.31 | U73: 0.1230271819 | V73: 15633961.38 | Y73: 0.1138365816 | Z73: 16291566.74 | AC73: 0.1117998926 | AD73: 17932744.82 | AG73: 0.1137003553 | AH73: 24317674.08 | AK73: 0.1116703381 | AL73: 26017520.95 | AO73: 0.108167227 | AP73: 27406438.9 | AS73: 0.1081696967 | AT73: 29754902.05
A74: 40<100 HP Tractor | B74: 40<100 HP Tractor | E74: =IFERROR(F74/F$107,0) -> 0 | F74: =IFERROR(VLOOKUP($A$74,[7]Collateral!$A$1:$C$30,3,FALSE),"") ->  | I74: 0 | M74: 0 | Q74: 0 | U74: 0 | Y74: 0 | AC74: 0 | AG74: 0 | AK74: 0 | AO74: 0 | AS74: 0
A75: 40<60 HP TRACTOR | B75: 40-60 HP TRACTOR | E75: =IFERROR(F75/F$107,0) -> 0.002511938294 | F75: =IFERROR(VLOOKUP($A$75,[7]Collateral!$A$1:$C$30,3,FALSE),"") -> 138307.81 | I75: 0.002884172585 | J75: 182448.33 | M75: 0.003641701067 | N75: 268342.22 | Q75: 0.003617295303 | R75: 407233.98 | U75: 0.004526674996 | V75: 575237.61 | Y75: 0.005191185532 | Z75: 742929.42 | AC75: 0.006171775681 | AD75: 989955.14 | AG75: 0.00594191961 | AH75: 1270828.61 | AK75: 0.006824115792 | AL75: 1589917.06 | AO75: 0.007503254715 | AP75: 1901107.18 | AS75: 0.008262193752 | AT75: 2272732.32
A76: 4WD VEHICLE | B76: 4WD VEHICLE | E76: 0 | F76: =IFERROR(VLOOKUP($A$76,[7]Collateral!$A$1:$C$30,3,FALSE),"") ->  | I76: 0 | M76: 1.063269116e-05 | N76: 783.48 | Q76: 1.735170898e-05 | R76: 1953.45 | U76: 2.453404458e-05 | V76: 3117.72 | Y76: 2.988080113e-05 | Z76: 4276.35 | AC76: 4.077733582e-05 | AD76: 6540.7 | AG76: 4.768315866e-05 | AH76: 10198.24 | AK76: 6.119701283e-05 | AL76: 14257.99 | AO76: 7.22018294e-05 | AP76: 18293.85 | AS76: 8.109005908e-05 | AT76: 22305.94
A77: 60<100 HP TRACTOR | B77: 60-100 HP TRACTOR | E77: 0.04408446138 | F77: =IFERROR(VLOOKUP($A$77,[7]Collateral!$A$1:$C$30,3,FALSE),"") -> 2427299 | I77: 0.04769606422 | J77: 3017179.8 | M77: 0.05480067828 | N77: 4038040.3 | Q77: 0.05062233555 | R77: 5699046.79 | U77: 0.05417084063 | V77: 6883883.85 | Y77: 0.05899669944 | Z77: 8443231.98 | AC77: 0.06411379308 | AD77: 10283876.52 | AG77: 0.05816084167 | AH77: 12439155.43 | AK77: 0.06023897778 | AL77: 14034782.14 | AO77: 0.06389721325 | AP77: 16189701.07 | AS77: 0.06736803628 | AT77: 18531339.01
A78: BACKHOE | B78: Backhoes | E78: 0 | F78: =IFERROR(VLOOKUP($A$78,[7]Collateral!$A$1:$C$30,3,FALSE),"") ->  | I78: 4.401071079e-05 | J78: 2784.05 | M78: 0.0001510346176 | N78: 11129.13 | Q78: 0.000257495826 | R78: 28988.8 | U78: 0.0003683008858 | V78: 46802.68 | Y78: 0.0004511876943 | Z78: 64571.11 | AC78: 0.0005130552186 | AD78: 82294.25 | AG78: 0.0004674327362 | AH78: 99972.22 | AK78: 0.0005047755319 | AL78: 117605.16 | AO78: 0.0005335781045 | AP78: 135193.22 | AS78: 0.0005552519133 | AT78: 152736.55
A79: BALERS, WINDROWERS, MOWERS, RAKES | B79: BALERS, WINDROWERS, MOWERS, RAKES | E79: 0.02206012947 | F79: =IFERROR(VLOOKUP($A$79,[7]Collateral!$A$1:$C$30,3,FALSE),"") -> 1214635.01 | I79: 0.02807312595 | J79: 1775862.85 | M79: 0.02900474815 | N79: 2137242.56 | Q79: 0.02809029737 | R79: 3162396.94 | U79: 0.0297962564 | V79: 3786427.64 | Y79: 0.03519105065 | Z79: 5036319.1 | AC79: 0.03593816145 | AD79: 5764494.61 | AG79: 0.03584769464 | AH79: 7666929.03 | AK79: 0.03683044004 | AL79: 8580942.46 | AO79: 0.03881171274 | AP79: 9833762.62 | AS79: 0.03855102529 | AT79: 10604467.02
A80: QUAD BIKES | B80: QUAD BIKES | E80: 0 | F80: =IFERROR(VLOOKUP($A$80,[7]Collateral!$A$1:$C$30,3,FALSE),"") ->  | I80: 0 | M80: 0 | Q80: 0 | U80: 0 | Y80: 1.530406263e-05 | Z80: 2190.22 | AC80: 1.365470614e-05 | AD80: 2190.22 | AG80: 2.009546758e-05 | AH80: 4297.92 | AK80: 2.167267676e-05 | AL80: 5049.41 | AO80: 3.228048937e-05 | AP80: 8178.94 | AS80: 3.362654494e-05 | AT80: 9249.86
A81: Combines | B81: Combines | E81: 0.3738790369 | F81: =IFERROR(VLOOKUP($A$81,[7]Collateral!$A$1:$C$30,3,FALSE),"") -> 20585852.34 | I81: 0.3620554833 | J81: 22903074.05 | M81: 0.3410103507 | N81: 25127673.27 | Q81: 0.3626219247 | R81: 40823863.48 | U81: 0.3518164063 | V81: 44707876.96 | Y81: 0.3539900056 | Z81: 50660795.67 | AC81: 0.3379631935 | AD81: 54209423.32 | AG81: 0.358997774 | AH81: 76780682.36 | AK81: 0.354894876 | AL81: 82685205.68 | AO81: 0.3546253702 | AP81: 89851786.07 | AS81: 0.3471765873 | AT81: 95499993.64
A82: TRUCK - on Farm | B82: TRUCK - on Farm | E82: 0 | F82: =IFERROR(VLOOKUP($A$82,[7]Collateral!$A$1:$C$30,3,FALSE),"") ->  | I82: 0 | M82: 0 | Q82: 0 | U82: 0 | Y82: 0 | AC82: 0 | AG82: 0 | AK82: 0 | AO82: 0 | AS82: 7.090956848e-05 | AT82: 19505.53
A83: Cotton Pickers | B83: Cotton Pickers | E83: 0 | F83: =IFERROR(VLOOKUP($A$83,[7]Collateral!$A$1:$C$30,3,FALSE),"") ->  | I83: 0 | M83: 0 | Q83: 0 | U83: 0 | Y83: 0 | AC83: 0 | AG83: 0.0002547864232 | AH83: 54492.47 | AK83: 0.0002338882539 | AL83: 54492.47 | AO83: 0.0002150698744 | AP83: 54492.47 | AS83: 0.0001980995919 | AT83: 54492.47
A84: CRAWLERS / DOZERS | B84: CRAWLERS / DOZERS | E84: 0 | F84: =IFERROR(VLOOKUP($A$84,[7]Collateral!$A$1:$C$30,3,FALSE),"") ->  | I84: 0 | M84: 0 | Q84: 0 | U84: 0 | Y84: 0 | AC84: 0 | AG84: 0 | AK84: 0 | AO84: 0 | AS84: 0
A85: CULTIVATORS,SEEDERS, HARROWS | B85: CULTIVATORS,SEEDERS, HARROWS | E85: 0.01599601408 | F85: =IFERROR(VLOOKUP($A$85,[7]Collateral!$A$1:$C$30,3,FALSE),"") -> 880743.64 | I85: 0.01477047385 | J85: 934357.5 | M85: 0.01365261295 | N85: 1006005.82 | Q85: 0.01489788554 | R85: 1677199.32 | U85: 0.01576133961 | V85: 2002908.39 | Y85: 0.01439387625 | Z85: 2059959.92 | AC85: 0.01361532675 | AD85: 2183903.53 | AG85: 0.01623138398 | AH85: 3471488.76 | AK85: 0.01571876546 | AL85: 3662237.59 | AO85: 0.01487702847 | AP85: 3769407.64 | AS85: 0.01434327644 | AT85: 3945493.04
A86: Drill | B86: Drill | E86: 0 | F86: =IFERROR(VLOOKUP($A$86,[7]Collateral!$A$1:$C$30,3,FALSE),"") ->  | I86: 0 | M86: 0 | Q86: 0.0004753994304 | R86: 53520.32 | U86: 0.0004294709008 | V86: 54576 | Y86: 0.0003861810291 | Z86: 55267.77 | AC86: 0.0003509192521 | AD86: 56287.58 | AG86: 0.0005084149276 | AH86: 108737.29 | AK86: 0.0006080083722 | AL86: 141656.87 | AO86: 0.0005815119635 | AP86: 147338.27 | AS86: 0.0006334074757 | AT86: 174235.28
A87: DUMP TRUCKS | B87: DUMP TRUCKS | E87: 0 | F87: =IFERROR(VLOOKUP($A$87,[7]Collateral!$A$1:$C$30,3,FALSE),"") ->  | I87: 0 | M87: 0 | Q87: 0 | U87: 0 | Y87: 0 | AC87: 0 | AG87: 0 | AK87: 0 | AO87: 0 | AS87: 0
A88: EXCAVATORS / GRADERS | B88: EXCAVATORS / GRADERS | E88: 0.002230541901 | F88: =IFERROR(VLOOKUP($A$88,[7]Collateral!$A$1:$C$30,3,FALSE),"") -> 122814.07 | I88: 0.002469617157 | J88: 156224.19 | M88: 0.003296614678 | N88: 242914.2 | Q88: 0.003181778466 | R88: 358203.63 | U88: 0.003540235043 | V88: 449883.49 | Y88: 0.003891592849 | Z88: 556939.99 | AC88: 0.004399128964 | AD88: 705621.94 | AG88: 0.003980230038 | AH88: 851272.07 | AK88: 0.004300401877 | AL88: 1001929.41 | AO88: 0.004504911226 | AP88: 1141413.88 | AS88: 0.005080546673 | AT88: 1397537.14
A89: FEEDERS, MIXERS, WAGONS, BINS, FEED STORAGE | B89: FEEDERS, MIXERS, WAGONS, BINS, FEED STORAGE | E89: 0.007409891243 | F89: =IFERROR(VLOOKUP($A$89,[7]Collateral!$A$1:$C$30,3,FALSE),"") -> 407990.05 | I89: 0.006462436312 | J89: 408803.8 | M89: 0.005547920243 | N89: 408803.8 | Q89: 0.003631239381 | R89: 408803.8 | U89: 0.004135766295 | V89: 525561.99 | Y89: 0.004013215853 | Z89: 574345.9 | AC89: 0.003590258478 | AD89: 575878.81 | AG89: 0.002699603406 | AH89: 577377.93 | AK89: 0.00300514104 | AL89: 700152.98 | AO89: 0.002812926495 | AP89: 712714.01 | AS89: 0.002727348126 | AT89: 750228.38
A90: Front End Loader | B90: Front End Loader | E90: 0.0001894733604 | F90: =IFERROR(VLOOKUP($A$90,[7]Collateral!$A$1:$C$30,3,FALSE),"") -> 10432.44 | I90: 0.0002182088997 | J90: 13803.56 | M90: 0.0002375449984 | N90: 17503.73 | Q90: 0.0001880250354 | R90: 21167.8 | U90: 0.000195126676 | V90: 24796.17 | Y90: 0.0002020732717 | Z90: 28919.44 | AC90: 0.0002390423947 | AD90: 38342.49 | AG90: 0.0002573055104 | AH90: 55031.24 | AK90: 0.0002578689327 | AL90: 60079.61 | AO90: 0.0004311603076 | AP90: 109243.52 | AS90: 0.0005463704449 | AT90: 150293.47
A91: Fronts | B91: Fronts | E91: 0.003089292416 | F91: =IFERROR(VLOOKUP($A$91,[7]Collateral!$A$1:$C$30,3,FALSE),"") -> 170097.04 | I91: 0.002977988647 | J91: 188382.99 | M91: 0.002853996134 | N91: 210299.43 | Q91: 0.003820002827 | R91: 430054.73 | U91: 0.003902058848 | V91: 495863.08 | Y91: 0.003643598026 | Z91: 521448.55 | AC91: 0.003815467863 | AD91: 612002.48 | AG91: 0.004285913692 | AH91: 916650.19 | AK91: 0.004107447749 | AL91: 956973.98 | AO91: 0.003945555665 | AP91: 999689.4 | AS91: 0.00397434351 | AT91: 1093247.05
A92: GUIDANCE SYSTEMS | B92: Guidance Systems | E92: 0 | F92: =IFERROR(VLOOKUP($A$92,[7]Collateral!$A$1:$C$30,3,FALSE),"") ->  | I92: 0 | M92: 0 | Q92: 0 | U92: 0 | Y92: 0 | AC92: 0 | AG92: 0 | AK92: 0 | AO92: 0 | AS92: 0
A93: HARVESTERS - Other | B93: HARVESTERS - Other | E93: 0.0003178385091 | F93: =IFERROR(VLOOKUP($A$93,[7]Collateral!$A$1:$C$30,3,FALSE),"") -> 17500.25 | I93: 0.0002893541608 | J93: 18304.1 | M93: 0.00504291464 | N93: 371591.98 | Q93: 0.003307736267 | R93: 372383.92 | U93: 0.003422842868 | V93: 434965.61 | Y93: 0.003044754028 | Z93: 435745.81 | AC93: 0.002760000138 | AD93: 442705.06 | AG93: 0.002947789762 | AH93: 630458.81 | AK93: 0.003288929832 | AL93: 766271.53 | AO93: 0.003049856487 | AP93: 772745.2 | AS93: 0.00281193718 | AT93: 773496.81
A94: Irrigation Equipment | B94: Irrigation Equipment | E94: 0.00145842548 | F94: =IFERROR(VLOOKUP($A$94,[7]Collateral!$A$1:$C$30,3,FALSE),"") -> 80301.19 | I94: 0.001269414145 | J94: 80301.19 | M94: 0.001089776068 | N94: 80301.19 | Q94: 0.001391917152 | R94: 156701.6 | U94: 0.00123312037 | V94: 156701.6 | Y94: 0.001094945303 | Z94: 156701.6 | AC94: 0.0009769403531 | AD94: 156701.6 | AG94: 0.001072545272 | AH94: 229390.72 | AK94: 0.0009845726386 | AL94: 229390.72 | AO94: 0.0009053550582 | AP94: 229390.72 | AS94: 0.0008339172004 | AT94: 229390.72
A95: Other AG | B95: Other AG | E95: 0.00530811823 | F95: =IFERROR(VLOOKUP($A$95,[7]Collateral!$A$1:$C$30,3,FALSE),"") -> 292266.02 | I95: 0.005601853777 | J95: 354364.67 | M95: 0.006088334222 | N95: 448624.72 | Q95: 0.006364075854 | R95: 716465.68 | U95: 0.005847192411 | V95: 743045.39 | Y95: 0.005651310949 | Z95: 808779.64 | AC95: 0.006008507111 | AD95: 963766.8 | AG95: 0.005947779619 | AH95: 1272081.92 | AK95: 0.005671331298 | AL95: 1321335.49 | AO95: 0.005655253079 | AP95: 1432877.15 | AS95: 0.00568258018 | AT95: 1563142.19
A96: MATERIALS HANDLING EQUIPMENT | B96: MATERIALS HANDLING EQUIPMENT | E96: 0 | F96: =IFERROR(VLOOKUP($A$96,[7]Collateral!$A$1:$C$30,3,FALSE),"") ->  | I96: 0 | M96: 0 | Q96: 0 | U96: 2.92152113e-05 | V96: 3712.59 | Y96: 0.0001033798088 | Z96: 14795.06 | AC96: 0.0001608169547 | AD96: 25795.1 | AG96: 0.0001716577628 | AH96: 36713.32 | AK96: 0.0002040917517 | AL96: 47550.33 | AO96: 0.0002301239254 | AP96: 58306.73 | AS96: 0.0002507783168 | AT96: 68983.13
A97: Other CE | B97: Other CE | E97: 0.000604977526 | F97: =IFERROR(VLOOKUP($A$97,[7]Collateral!$A$1:$C$30,3,FALSE),"") -> 33310.18 | I97: 0.0005265726903 | J97: 33310.18 | M97: 0.001022295636 | N97: 75328.83 | Q97: 0.0008105597098 | R97: 91252.56 | U97: 0.0007180870556 | V97: 91252.56 | Y97: 0.0006376231126 | Z97: 91252.56 | AC97: 0.0008207362928 | AD97: 131646.41 | AG97: 0.0006877922428 | AH97: 147101.63 | AK97: 0.0006313779389 | AL97: 147101.63 | AO97: 0.0005805779972 | AP97: 147101.63 | AS97: 0.00097246597 | AT97: 267502.18
A98: Over 100 HP Tractor | B98: Over 100 HP Tractor | E98: 0 | F98: =IFERROR(VLOOKUP($A$98,[7]Collateral!$A$1:$C$30,3,FALSE),"") ->  | I98: 0 | M98: 0 | Q98: 0 | U98: 0 | Y98: 0 | AC98: 0 | AG98: 0 | AK98: 0 | AO98: 0 | AS98: 0
A99: OVER 140 HP TRACTOR | B99: OVER 140 HP TRACTOR | E99: 0.2248669 | F99: =IFERROR(VLOOKUP($A$99,[7]Collateral!$A$1:$C$30,3,FALSE),"") -> 12381215.16 | I99: 0.2260655448 | J99: 14300559.31 | M99: 0.2366553479 | N99: 17438175.26 | Q99: 0.2249779972 | R99: 25327952.94 | U99: 0.2224511329 | V99: 28268488.05 | Y99: 0.2184369718 | Z99: 31261308.57 | AC99: 0.221689875 | AD99: 35559139.32 | AG99: 0.2147883046 | AH99: 45937868.66 | AK99: 0.2119431364 | AL99: 49379585.37 | AO99: 0.2102992659 | AP99: 53283736.12 | AS99: 0.2113099802 | AT99: 58126332.54
A100: Rollers | B100: Rollers | E100: 0 | F100: =IFERROR(VLOOKUP($A$100,[7]Collateral!$A$1:$C$30,3,FALSE),"") ->  | I100: 0 | M100: 0 | Q100: 0 | U100: 0 | Y100: 0 | AC100: 0 | AG100: 0 | AK100: 0 | AO100: 0 | AS100: 0
A101: SCRAPERS | B101: SCRAPERS | E101: 0 | F101: =IFERROR(VLOOKUP($A$101,[7]Collateral!$A$1:$C$30,3,FALSE),"") ->  | I101: 0 | M101: 0.0002237342253 | N101: 16486.07 | Q101: 0.0002172462034 | R101: 24457.51 | U101: 0.0002538077334 | V101: 32253.2 | Y101: 0.0002786390033 | Z101: 39877.04 | AC101: 0.0002950916399 | AD101: 47332.81 | AG101: 0.0002554023902 | AH101: 54624.21 | AK101: 0.0002650593936 | AL101: 61754.88 | AO101: 0.0002712557828 | AP101: 68728.35 | AS101: 0.0002746442549 | AT101: 75548.08
A102: SKIDSTEER / UNILOADER | B102: SKIDSTEER / UNILOADER | E102: 0.002481810903 | F102: =IFERROR(VLOOKUP($A$102,[7]Collateral!$A$1:$C$30,3,FALSE),"") -> 136648.99 | I102: 0.003230134032 | J102: 204333.32 | M102: 0.004090007669 | N102: 301376.12 | Q102: 0.003702776175 | R102: 416857.39 | U102: 0.004182060245 | V102: 531444.9 | Y102: 0.00477409969 | Z102: 683238.75 | AC102: 0.005620981585 | AD102: 901607.56 | AG102: 0.005574038391 | AH102: 1192147.98 | AK102: 0.006275620033 | AL102: 1462125.74 | AO102: 0.00682139003 | AP102: 1728342.44 | AS102: 0.007280191331 | AT102: 2002606.89
A103: SPRAYING EQUIPMENT | B103: SPRAYING EQUIPMENT | E103: 0.07248465241 | F103: =IFERROR(VLOOKUP($A$103,[7]Collateral!$A$1:$C$30,3,FALSE),"") -> 3991019.03 | I103: 0.07053088173 | J103: 4461675.3 | M103: 0.06378261388 | N103: 4699882.8 | Q103: 0.06441041922 | R103: 7251304.96 | U103: 0.06729480633 | V103: 8551641.9 | Y103: 0.065359011 | Z103: 9353765.5 | AC103: 0.06767905854 | AD103: 10855746.44 | AG103: 0.06672432073 | AH103: 14270670.31 | AK103: 0.06740339714 | AL103: 15703984.85 | AO103: 0.06500931091 | AP103: 16471474.37 | AS103: 0.06254556412 | AT103: 17204792.01
A104: Trenchers | B104: Trenchers | E104: 0 | F104: =IFERROR(VLOOKUP($A$104,[7]Collateral!$A$1:$C$30,3,FALSE),"") ->  | I104: 0 | M104: 0 | Q104: 0 | U104: 0 | Y104: 0 | AC104: 0 | AG104: 0 | AK104: 0 | AO104: 0 | AS104: 0
A105: Under 40 HP Tractors | B105: Under 40 HP Tractors | E105: 0.002351463015 | F105: =IFERROR(VLOOKUP($A$105,[7]Collateral!$A$1:$C$30,3,FALSE),"") -> 129472.01 | I105: 0.002241997343 | J105: 141825.31 | M105: 0.002379355884 | N105: 175325.11 | Q105: 0.001853460531 | R105: 208662.01 | U105: 0.002115719978 | V105: 268859.97 | Y105: 0.00212404901 | Z105: 303980.37 | AC105: 0.002470459358 | AD105: 396262.61 | AG105: 0.002177009829 | AH105: 465608.18 | AK105: 0.002523968438 | AL105: 588046.95 | AO105: 0.002667908717 | AP105: 675970.71 | AS105: 0.002871108144 | AT105: 789773.33
A106: WHEEL LOADERS (OLD) | B106: Wheel Loaders | E106: 0.0002694687196 | F106: =IFERROR(VLOOKUP($A$106,[7]Collateral!$A$1:$C$30,3,FALSE),"") -> 14837 | I106: 0.0004204360646 | J106: 26596.14 | M106: 0.0004797600862 | N106: 35351.58 | Q106: 0.0003655955207 | R106: 41158.63 | U106: 0.0003920760222 | V106: 49823.96 | Y106: 0.0004083158876 | Z106: 58435.57 | AC106: 0.0004176660408 | AD106: 66993.79 | AG106: 0.0003530048726 | AH106: 75498.95 | AK106: 0.0003603294918 | AL106: 83951.39 | AO106: 0.0003644909187 | AP106: 92351.43 | AS106: 0.0003660782502 | AT106: 100699.39
B107: Total | E107: =SUM(E72:E106) -> 1 | F107: =SUM(F72:F106) -> 55060194.09 | G107: =F69-F107 -> 1.192092896e-07 | I107: 1 | J107: 63258464.81 | K107: 1.415610313e-07 | M107: 1 | N107: 73685954.75 | O107: 1.192092896e-07 | Q107: 1 | R107: 112579688.9 | S107: 0 | U107: 1 | V107: 127077294.2 | W107: 0 | Y107: 1 | Z107: 143113632.8 | AA107: 2.682209015e-07 | AC107: 1 | AD107: 160400376 | AE107: 4.172325134e-07 | AG107: 1 | AH107: 213875093.1 | AI107: 0 | AK107: 1 | AL107: 232985064.8 | AM107: 0 | AO107: 1 | AP107: 253371003.9 | AQ107: -3.278255463e-07 | AS107: 1 | AT107: 275076134.5 | AU107: 0
A108: $ 0 - $25,000
A109: $ 25,001 to $50,000 | B109: Contract Balance Distribution
A110: $0 - $25,000 | B110: $ 0 - $25,000 | E110: =IFERROR(F110/F$121,0) -> 0.1165695057 | F110: =IFERROR(VLOOKUP($A$110,'[7] Balance Distribution'!$A$1:$C$13,3,FALSE),"") -> 6418339.61 | I110: 0.1225365608 | J110: 7751474.72 | M110: 0.1219390317 | N110: 8985193.97 | Q110: 0.09164021758 | R110: 10316827.19 | U110: 0.08527616433 | V110: 10836664.22 | Y110: 0.08281459542 | Z110: 11851897.6 | AC110: 0.08035309055 | AD110: 12888665.94 | AG110: 0.06252789759 | AH110: 13373159.92 | AK110: 0.05835659046 | AL110: 13596214.01 | AO110: 0.05339303614 | AP110: 13528247.17 | AS110: 0.04900330064 | AT110: 13479638.52
A111: $25,001 - $50,000 | B111: $ 25,001 to $50,000 | E111: =IFERROR(F111/F$121,0) -> 0.201745694 | F111: =IFERROR(VLOOKUP($A$111,'[7] Balance Distribution'!$A$1:$C$13,3,FALSE),"") -> 11108157.07 | I111: 0.2011804783 | J111: 12726368.21 | M111: 0.2021747409 | N111: 14897438.81 | Q111: 0.1435170658 | R111: 16157106.63 | U111: 0.1428862709 | V111: 18157600.68 | Y111: 0.1411916668 | Z111: 20206452.36 | AC111: 0.1399362646 | AD111: 22445829.47 | AG111: 0.1091374309 | AH111: 23341778.19 | AK111: 0.1068095496 | AL111: 24885029.83 | AO111: 0.1045479697 | AP111: 26489424.04 | AS111: 0.09921119724 | AT111: 27290632.64
A112: $50,001 - $75,000 | B112: $ 50,001 to $75,000 | E112: 0.1798435122 | F112: =IFERROR(VLOOKUP($A$112,'[7] Balance Distribution'!$A$1:$C$13,3,FALSE),"") -> 9902218.69 | I112: 0.1756853841 | J112: 11113587.69 | M112: 0.1734868911 | N112: 12783547.21 | Q112: 0.1399743529 | R112: 15758269.11 | U112: 0.1383002427 | V112: 17574820.63 | Y112: 0.1407585722 | Z112: 20144470.62 | AC112: 0.1371419809 | AD112: 21997625.3 | AG112: 0.1096682873 | AH112: 23455315.17 | AK112: 0.1122012079 | AL112: 26141205.7 | AO112: 0.1109213887 | AP112: 28104263.62 | AS112: 0.1111248815 | AT112: 30567802.85
A113: $75,001 - $100,000 | B113: $ 75,001 to $100,000 | E113: 0.1472409296 | F113: =IFERROR(VLOOKUP($A$113,'[7] Balance Distribution'!$A$1:$C$13,3,FALSE),"") -> 8107114.16 | I113: 0.1451792181 | J113: 9183814.46 | M113: 0.1376755445 | N113: 10144753.94 | Q113: 0.1209457145 | R113: 13616030.92 | U113: 0.1223335494 | V113: 15545816.44 | Y113: 0.1112504026 | Z113: 15921449.26 | AC113: 0.1101510727 | AD113: 17668273.48 | AG113: 0.08948379925 | AH113: 19138355.9 | AK113: 0.08797436612 | AL113: 20496713.39 | AO113: 0.0975419954 | AP113: 24714313.3 | AS113: 0.09672943604 | AT113: 26607959.36
A114: $100,001 - $125,000 | B114: $100,001 to $125,000 | E114: 0.09454347258 | F114: =IFERROR(VLOOKUP($A$114,'[7] Balance Distribution'!$A$1:$C$13,3,FALSE),"") -> 5205581.95 | I114: 0.09240713077 | J114: 5845533.23 | M114: 0.09842964612 | N114: 7252882.45 | Q114: 0.09624813492 | R114: 10835585.09 | U114: 0.09202512658 | V114: 11694304.08 | Y114: 0.09590153965 | Z114: 13724817.73 | AC114: 0.09946421495 | AD114: 15954097.48 | AG114: 0.1047598157 | AH114: 22405515.33 | AK114: 0.1035934079 | AL114: 24135716.86 | AO114: 0.09564621655 | AP114: 24233977.91 | AS114: 0.09681211591 | AT114: 26630702.62
A115: $125,001 - $150,000 | B115: $125,001 to $150,000 | E115: 0.07438201168 | F115: =IFERROR(VLOOKUP($A$115,'[7] Balance Distribution'!$A$1:$C$13,3,FALSE),"") -> 4095488 | I115: 0.07562723905 | J115: 4784063.04 | M115: 0.07256783424 | N115: 5347230.15 | Q115: 0.1034333028 | R115: 11644489.05 | U115: 0.1077049896 | V115: 13686858.64 | Y115: 0.1062247328 | Z115: 15202207.4 | AC115: 0.1011752638 | AD115: 16228550.36 | AG115: 0.09731486768 | AH115: 20813226.39 | AK115: 0.0898297232 | AL115: 20928983.88 | AO115: 0.08752880356 | AP115: 22177260.83 | AS115: 0.08953609415 | AT115: 24629242.68
A116: $150,001 - $200,000 | B116: $150,000 to $200,000 | E116: 0.08214157078 | F116: =IFERROR(VLOOKUP($A$116,'[7] Balance Distribution'!$A$1:$C$13,3,FALSE),"") -> 4522730.83 | I116: 0.08597046919 | J116: 5438359.9 | M116: 0.08999436572 | N116: 6631320.76 | Q116: 0.1332656056 | R116: 15003000.43 | U116: 0.135740838 | V116: 17249578.4 | Y116: 0.1367606751 | Z116: 19572317.04 | AC116: 0.1467369231 | AD116: 23536657.64 | AG116: 0.1277641686 | AH116: 27325573.46 | AK116: 0.1213408347 | AL116: 28270602.24 | AO116: 0.1238644571 | AP116: 31383661.85 | AS116: 0.1219520603 | AT116: 33546101.35
A117: $200,001 - $300,000 | B117: $200,001 to $300,000 | E117: 0.06686730116 | F117: =IFERROR(VLOOKUP($A$117,'[7] Balance Distribution'!$A$1:$C$13,3,FALSE),"") -> 3681726.58 | I117: 0.06949941598 | J117: 4396426.36 | M117: 0.06182821618 | N117: 4555871.14 | Q117: 0.1133510073 | R117: 12761021.14 | U117: 0.1184384693 | V117: 15050840.2 | Y117: 0.1195477959 | Z117: 17108919.37 | AC117: 0.1114724887 | AD117: 17880229.1 | AG117: 0.1886276694 | AH117: 40342760.37 | AK117: 0.2001656347 | AL117: 46635603.36 | AO117: 0.2014215473 | AP117: 51034379.65 | AS117: 0.2057159522 | AT117: 56587548.95
A118: $300,001 - $400,000 | B118: $300,001 to $400,000 | E118: 0.01288130403 | F118: =IFERROR(VLOOKUP($A$118,'[7] Balance Distribution'!$A$1:$C$13,3,FALSE),"") -> 709247.1 | I118: 0.01121189239 | J118: 709247.1 | M118: 0.02265415188 | N118: 1669292.81 | Q118: 0.03351403886 | R118: 3773000.07 | U118: 0.03213607267 | V118: 4083765.16 | Y118: 0.04321080801 | Z118: 6184055.71 | AC118: 0.04736272294 | AD118: 7596998.57 | AG118: 0.07435760301 | AH118: 15903239.27 | AK118: 0.0748844238 | AL118: 17446952.33 | AO118: 0.06920960902 | AP118: 17535708.12 | AS118: 0.06693786214 | AT118: 18413008.37
A119: $400,001 - $500,000 | B119: $400,001 to $500,000 | E119: 0.008740789748 | F119: =IFERROR(VLOOKUP($A$119,'[7] Balance Distribution'!$A$1:$C$13,3,FALSE),"") -> 481269.58 | I119: 0.007607987033 | J119: 481269.58 | M119: 0 | Q119: 0.008020127862 | R119: 902903.5 | U119: 0.01090352064 | V119: 1385589.9 | Y119: 0.009681746406 | Z119: 1385589.9 | AC119: 0.01425113093 | AD119: 2285886.76 | AG119: 0.01229380973 | AH119: 2629339.7 | AK119: 0.01659202376 | AL119: 3865693.73 | AO119: 0.0242208884 | AP119: 6136870.81 | AS119: 0.03052896753 | AT119: 8397790.38
A120: $500,001+ | B120: $500,000+ | E120: 0.01504390847 | F120: =IFERROR(VLOOKUP($A$120,'[7] Balance Distribution'!$A$1:$C$13,3,FALSE),"") -> 828320.52 | I120: 0.01309422419 | J120: 828320.52 | M120: 0.01924957768 | N120: 1418423.51 | Q120: 0.01609043183 | R120: 1811455.81 | U120: 0.01425475591 | V120: 1811455.81 | Y120: 0.01265746508 | Z120: 1811455.81 | AC120: 0.01195484691 | AD120: 1917561.94 | AG120: 0.02406465084 | AH120: 5146829.44 | AK120: 0.02825223782 | AL120: 6582349.46 | AO120: 0.0317040881 | AP120: 8032896.63 | AS120: 0.03244813232 | AT120: 8925706.81
A121: $200,001 to $300,000 | B121: Total | E121: =SUM(E110:E120) -> 1 | F121: =SUM(F110:F120) -> 55060194.09 | G121: =F107-F121 -> 0 | I121: 1 | J121: 63258464.81 | K121: 0 | M121: 1 | N121: 73685954.75 | O121: 0 | Q121: 1 | R121: 112579688.9 | S121: 0 | U121: 1 | V121: 127077294.2 | W121: 0 | Y121: 1 | Z121: 143113632.8 | AA121: 0 | AC121: 1 | AD121: 160400376 | AE121: 0 | AG121: 1 | AH121: 213875093.1 | AI121: 0 | AK121: 1 | AL121: 232985064.8 | AM121: 0 | AO121: 1 | AP121: 253371003.9 | AQ121: 0 | AS121: 1 | AT121: 275076134.5 | AU121: 0
A122: 0
A123: 0 to 5 | B123: Residual / Balloon Payment Distribution
A124: 0 | B124: 0 | E124: =IFERROR(F124/F$134,0) -> 0.8890510095 | F124: =IFERROR(VLOOKUP($A$124,'[7]Residual '!$A$1:$C$11,3,FALSE),"") -> 48951321.14 | I124: 0.8908795167 | J124: 56355670.56 | M124: 0.884450784 | N124: 65171600.45 | Q124: 0.9104246249 | R124: 102495321.1 | U124: 0.9154997952 | V124: 116339236.8 | Y124: 0.9097106351 | Z124: 130191993.8 | AC124: 0.9079493555 | AD124: 145635418.1 | AG124: 0.920202856 | AH124: 196808471.5 | AK124: 0.9206545733 | AL124: 214498765.4 | AO124: 0.9134963724 | AP124: 231453493 | AS124: 0.9110859187 | AT124: 250617992.7
A125: 0 to 5 | B125: 0 to 5 | E125: =IFERROR(F125/F$134,0) -> 0 | F125: =IFERROR(VLOOKUP($A$125,'[7]Residual '!$A$1:$C$11,3,FALSE),"") ->  | I125: 0 | M125: 0 | Q125: 0 | U125: 0 | Y125: 0 | AC125: 0 | AG125: 0 | AK125: 0 | AO125: 0 | AS125: 0
A126: 6 to 10 | B126: 06 to 10 | E126: 0 | F126: =IFERROR(VLOOKUP($A$126,'[7]Residual '!$A$1:$C$11,3,FALSE),"") ->  | I126: 0.001328585198 | J126: 84044.26 | M126: 0.001140573672 | N126: 84044.26 | Q126: 0.001074077937 | R126: 120919.36 | U126: 0.0009515418218 | V126: 120919.36 | Y126: 0.0008449185283 | Z126: 120919.36 | AC126: 0.0007538595793 | AD126: 120919.36 | AG126: 0.0007311211311 | AH126: 156368.6 | AK126: 0.0006711528919 | AL126: 156368.6 | AO126: 0.0006548685817 | AP126: 165924.71 | AS126: 0.0006165197875 | AT126: 169589.88
A127: 11 to 15 | B127: 11 to 15 | E127: 0.009036744752 | F127: =IFERROR(VLOOKUP($A$127,'[7]Residual '!$A$1:$C$11,3,FALSE),"") -> 497564.92 | I127: 0.009774043393 | J127: 618290.98 | M127: 0.01119406246 | N127: 824845.18 | Q127: 0.008864495802 | R127: 997962.18 | U127: 0.00895939615 | V127: 1138535.82 | Y127: 0.00966117548 | Z127: 1382645.92 | AC127: 0.009748781509 | AD127: 1563708.22 | AG127: 0.008468149112 | AH127: 1811126.18 | AK127: 0.007936420438 | AL127: 1849067.43 | AO127: 0.007420940403 | AP127: 1880251.12 | AS127: 0.007526171485 | AT127: 2070270.16
A128: 16 to 20 | B128: 16 to 20 | E128: 0.0406630875 | F128: =IFERROR(VLOOKUP($A$128,'[7]Residual '!$A$1:$C$11,3,FALSE),"") -> 2238917.49 | I128: 0.03742108882 | J128: 2367200.63 | M128: 0.03613730024 | N128: 2662811.47 | Q128: 0.02726283861 | R128: 3069241.89 | U128: 0.02438414487 | V128: 3098671.15 | Y128: 0.02639307029 | Z128: 3777208.17 | AC128: 0.02772968256 | AD128: 4447851.51 | AG128: 0.02430323407 | AH128: 5197856.45 | AK128: 0.02389854309 | AL128: 5568003.61 | AO128: 0.02533978534 | AP128: 6420366.85 | AS128: 0.02457669245 | AT128: 6760461.56
A129: 21 to 25 | B129: 21 to 25 | E129: 0.02090074688 | F129: =IFERROR(VLOOKUP($A$129,'[7]Residual '!$A$1:$C$11,3,FALSE),"") -> 1150799.18 | I129: 0.02009500553 | J129: 1271179.2 | M129: 0.02158731193 | N129: 1590681.69 | Q129: 0.01895848532 | R129: 2134340.38 | U129: 0.01969940245 | V129: 2503346.76 | Y129: 0.01963803654 | Z129: 2810470.75 | AC129: 0.01944393789 | AD129: 3118814.95 | AG129: 0.01668771696 | AH129: 3569087.02 | AK129: 0.01592664068 | AL129: 3710669.41 | AO129: 0.01801105904 | AP129: 4563480.11 | AS129: 0.01752467828 | AT129: 4820620.76
A130: 26 to 30 | B130: 26 to 30 | E130: 0.02110635931 | F130: =IFERROR(VLOOKUP($A$130,'[7]Residual '!$A$1:$C$11,3,FALSE),"") -> 1162120.24 | I130: 0.02039941601 | J130: 1290435.74 | M130: 0.0198415772 | N130: 1462045.56 | Q130: 0.01428113477 | R130: 1607765.71 | U130: 0.01344278442 | V130: 1708272.67 | Y130: 0.01521639908 | Z130: 2177674.15 | AC130: 0.01529823409 | AD130: 2453842.5 | AG130: 0.0127971458 | AH130: 2736990.75 | AK130: 0.01263335662 | AL130: 2943383.41 | AO130: 0.01177006818 | AP130: 2982193.99 | AS130: 0.0127585968 | AT130: 3509585.49
A131: 31 to 35 | B131: 31 to 35 | E131: 0.005538616873 | F131: =IFERROR(VLOOKUP($A$131,'[7]Residual '!$A$1:$C$11,3,FALSE),"") -> 304957.32 | I131: 0.007647559761 | J131: 483772.89 | M131: 0.01172614934 | N131: 864052.51 | Q131: 0.008223168928 | R131: 925761.8 | U131: 0.00733457512 | V131: 932057.96 | Y131: 0.007440710987 | Z131: 1064867.18 | AC131: 0.006677038149 | AD131: 1070999.43 | AG131: 0.006194212381 | AH131: 1324787.75 | AK131: 0.005957947567 | AL131: 1388112.8 | AO131: 0.007429408973 | AP131: 1882396.81 | AS131: 0.007338744357 | AT131: 2018713.43
A132: 36 to 40 | B132: 36 to 40 | E132: 0.01180357336 | F132: =IFERROR(VLOOKUP($A$132,'[7]Residual '!$A$1:$C$11,3,FALSE),"") -> 649907.04 | I132: 0.01073809635 | J132: 679275.49 | M132: 0.01239449395 | N132: 913300.12 | Q132: 0.009875977012 | R132: 1111834.42 | U132: 0.008780110856 | V132: 1115752.73 | Y132: 0.008001324665 | Z132: 1145098.64 | AC132: 0.009412771574 | AD132: 1509812.1 | AG132: 0.008207633737 | AH132: 1755408.43 | AK132: 0.009097403784 | AL132: 2119559.21 | AO132: 0.01002773637 | AP132: 2540737.63 | AS132: 0.009303351068 | AT132: 2559129.85
A133: 41+ % | B133: 41+% | E133: 0.00189986181 | F133: =IFERROR(VLOOKUP($A$133,'[7]Residual '!$A$1:$C$11,3,FALSE),"") -> 104606.76 | I133: 0.001716688199 | J133: 108595.06 | M133: 0.001527747186 | N133: 112573.51 | Q133: 0.001035196678 | R133: 116542.12 | U133: 0.0009482491014 | V133: 120500.93 | Y133: 0.003093729377 | Z133: 442754.85 | AC133: 0.002986339134 | AD133: 479009.92 | AG133: 0.002407930781 | AH133: 514996.42 | AK133: 0.003223961676 | AL133: 751134.92 | AO133: 0.005849760734 | AP133: 1482159.75 | AS133: 0.009269327033 | AT133: 2549770.65
E134: =SUM(E124:E133) -> 1 | F134: =SUM(F124:F133) -> 55060194.09 | G134: =F121-F134 -> -1.192092896e-07 | I134: 1 | J134: 63258464.81 | K134: -8.195638657e-08 | M134: 1 | N134: 73685954.75 | O134: -1.639127731e-07 | Q134: 1 | R134: 112579688.9 | S134: -1.192092896e-07 | U134: 1 | V134: 127077294.2 | W134: 0 | Y134: 1 | Z134: 143113632.8 | AA134: 0 | AC134: 1 | AD134: 160400376 | AE134: -2.980232239e-07 | AG134: 1 | AH134: 213875093.1 | AI134: 0 | AK134: 1 | AL134: 232985064.8 | AM134: 3.278255463e-07 | AO134: 1 | AP134: 253371003.9 | AQ134: 0 | AS134: 1 | AT134: 275076134.5 | AU134: 7.152557373e-07
A135: 2004 Q1
A136: 2004 Q2 | B136: Quarter of Maturity Distribution
A137: =RIGHT(B137,2)&LEFT(B137,4) -> Q12016 | B137: 2016Q1 | E137: =F137/F$166 -> 0 | F137: =IFERROR(VLOOKUP($A$137,'[7]Quarter of Maturity Dist'!$A$1:$C$21,3,FALSE),0) -> 0 | I137: 0 | J137: 0 | M137: 0 | N137: 0 | Q137: 0 | R137: 0 | U137: 0 | V137: 0 | Y137: 0 | Z137: 0 | AC137: 0 | AD137: 0 | AG137: 0 | AH137: 0 | AK137: 0 | AL137: 0 | AO137: 0 | AP137: 0 | AS137: 0 | AT137: 0
A138: Q22016 | B138: 2016Q2 | E138: 0 | F138: =IFERROR(VLOOKUP($A$138,'[7]Quarter of Maturity Dist'!$A$1:$C$21,3,FALSE),0) -> 0 | I138: 0 | J138: 0 | M138: 0 | N138: 0 | Q138: 0 | R138: 0 | U138: 0 | V138: 0 | Y138: 0 | Z138: 0 | AC138: 0 | AD138: 0 | AG138: 0 | AH138: 0 | AK138: 0 | AL138: 0 | AO138: 1.83443643e-05 | AP138: 4647.93 | AS138: 0.006176976796 | AT138: 1699138.9
A139: =RIGHT(B139,2)&LEFT(B139,4) -> Q32016 | B139: 2016Q3 | E139: 0 | F139: =IFERROR(VLOOKUP($A$139,'[7]Quarter of Maturity Dist'!$A$1:$C$21,3,FALSE),0) -> 0 | I139: 0 | J139: 0 | M139: 0 | N139: 0 | Q139: 0 | R139: 0 | U139: 0 | V139: 0 | Y139: 0 | Z139: 0 | AC139: 0 | AD139: 0 | AG139: 0 | AH139: 0 | AK139: 0.0001197308077 | AL139: 27895.49 | AO139: 0.003944923273 | AP139: 999529.17 | AS139: 0.004850806204 | AT139: 1334341.02
A140: =RIGHT(B140,2)&LEFT(B140,4) -> Q42016 | B140: 2016Q4 | E140: 0 | F140: =IFERROR(VLOOKUP($A$140,'[7]Quarter of Maturity Dist'!$A$1:$C$21,3,FALSE),0) -> 0 | I140: 0 | J140: 0 | M140: 0 | N140: 0 | Q140: 0 | R140: 0 | U140: 0 | V140: 0 | Y140: 0 | Z140: 0 | AC140: 0 | AD140: 0 | AG140: 0 | AH140: 0 | AK140: 0.002089095713 | AL140: 486728.1 | AO140: 0.00370160869 | AP140: 937880.31 | AS140: 0.004846832868 | AT140: 1333248.05
A141: Q12017 | B141: 2017Q1 | E141: 0 | F141: =IFERROR(VLOOKUP($A$141,'[7]Quarter of Maturity Dist'!$A$1:$C$21,3,FALSE),0) -> 0 | I141: 0 | J141: 0 | M141: 0 | N141: 0 | Q141: 0 | R141: 0 | U141: 0 | V141: 0 | Y141: 0 | Z141: 0 | AC141: 0.001164277071 | AD141: 186750.48 | AG141: 0.03052169359 | AH141: 6527830.06 | AK141: 0.0339749813 | AL141: 7915663.22 | AO141: 0.03537044552 | AP141: 8961845.29 | AS141: 0.03676917141 | AT141: 10114321.54
A142: Q22017 | B142: 2017Q2 | E142: 0 | F142: =IFERROR(VLOOKUP($A$142,'[7]Quarter of Maturity Dist'!$A$1:$C$21,3,FALSE),0) -> 0 | I142: 0 | J142: 0 | M142: 0 | N142: 0 | Q142: 0 | R142: 0 | U142: 0 | V142: 0 | Y142: 0.0003012376889 | Z142: 43111.22 | AC142: 0.01072767728 | AD142: 1720723.47 | AG142: 0.01845025675 | AH142: 3946050.38 | AK142: 0.01921748166 | AL142: 4477386.21 | AO142: 0.01981170123 | AP142: 5019710.63 | AS142: 0.02657185867 | AT142: 7309284.17
A143: Q32017 | B143: 2017Q3 | E143: 0 | F143: =IFERROR(VLOOKUP($A$143,'[7]Quarter of Maturity Dist'!$A$1:$C$21,3,FALSE),0) -> 0 | I143: 0 | J143: 0 | M143: 0 | N143: 0 | Q143: 0 | R143: 0 | U143: 0.0002521909222 | V143: 32047.74 | Y143: 0.008881048403 | Z143: 1270999.1 | AC143: 0.014444396 | AD143: 2316886.55 | AG143: 0.01527500188 | AH143: 3266942.45 | AK143: 0.01628190156 | AL143: 3793439.89 | AO143: 0.01999114078 | AP143: 5065175.41 | AS143: 0.02344709282 | AT143: 6449735.66
A144: Q42017 | B144: 2017Q4 | E144: 0 | F144: =IFERROR(VLOOKUP($A$144,'[7]Quarter of Maturity Dist'!$A$1:$C$21,3,FALSE),0) -> 0 | I144: 0 | J144: 0 | M144: 0 | N144: 0 | Q144: 0.0001794288134 | R144: 20200.04 | U144: 0.009876294804 | V144: 1255052.82 | Y144: 0.01560201126 | Z144: 2232860.51 | AC144: 0.01895269023 | AD144: 3040018.64 | AG144: 0.02006019442 | AH144: 4290375.95 | AK144: 0.02710986305 | AL144: 6316193.2 | AO144: 0.03231590957 | AP144: 8187914.45 | AS144: 0.03396266076 | AT144: 9342317.44
A145: Q12018 | B145: 2018Q1 | E145: 0 | F145: =IFERROR(VLOOKUP($A$145,'[7]Quarter of Maturity Dist'!$A$1:$C$21,3,FALSE),0) -> 0 | I145: 0 | J145: 0 | M145: 0.0002281208143 | N145: 16809.3 | Q145: 0.06739365645 | R145: 7587156.88 | U145: 0.07314062265 | V145: 9294512.42 | Y145: 0.07147421703 | Z145: 10228934.85 | AC145: 0.0683343557 | AD145: 10960856.35 | AG145: 0.09128594103 | AH145: 19523789.14 | AK145: 0.09021740724 | AL145: 21019308.47 | AO145: 0.08832679811 | AP145: 22379449.51 | AS145: 0.08566295619 | AT145: 23563834.86
A146: Q22018 | B146: 2018Q2 | E146: 0 | F146: =IFERROR(VLOOKUP($A$146,'[7]Quarter of Maturity Dist'!$A$1:$C$21,3,FALSE),0) -> 0 | I146: 0 | J146: 0 | M146: 0.02750090742 | N146: 2026430.62 | Q146: 0.03919153278 | R146: 4412170.57 | U146: 0.0416587375 | V146: 5293879.64 | Y146: 0.0428613311 | Z146: 6134040.8 | AC146: 0.05252688802 | AD146: 8425332.59 | AG146: 0.05233978452 | AH146: 11194176.29 | AK146: 0.05392825558 | AL146: 12564478.12 | AO146: 0.05740535896 | AP146: 14544853.43 | AS146: 0.06264049576 | AT146: 17230905.44
A147: Q32018 | B147: 2018Q3 | E147: 0.004297773263 | F147: =IFERROR(VLOOKUP($A$147,'[7]Quarter of Maturity Dist'!$A$1:$C$21,3,FALSE),0) -> 236636.23 | I147: 0.02832748274 | J147: 1791953.07 | M147: 0.03912602286 | N147: 2883038.35 | Q147: 0.03633946166 | R147: 4091085.29 | U147: 0.03892293665 | V147: 4946221.47 | Y147: 0.04764502477 | Z147: 6818652.58 | AC147: 0.05041318524 | AD147: 8086293.87 | AG147: 0.04423470658 | AH147: 9460701.99 | AK147: 0.04513615742 | AL147: 10516050.56 | AO147: 0.04938034837 | AP147: 12511548.44 | AS147: 0.05072482127 | AT147: 13953187.76
A148: Q42018 | B148: 2018Q4 | E148: 0.03965495193 | F148: =IFERROR(VLOOKUP($A$148,'[7]Quarter of Maturity Dist'!$A$1:$C$21,3,FALSE),0) -> 2183409.35 | I148: 0.05187006924 | J148: 3281220.95 | M148: 0.05393559971 | N148: 3974296.16 | Q148: 0.04428894463 | R148: 4986035.61 | U148: 0.06092629467 | V148: 7742348.67 | Y148: 0.06277575745 | Z148: 8984066.7 | AC148: 0.06256080664 | AD148: 10034776.91 | AG148: 0.05277635284 | AH148: 11287547.38 | AK148: 0.05972192193 | AL148: 13914315.85 | AO148: 0.06041735622 | AP148: 15308006.2 | AS148: 0.05947342134 | AT148: 16359718.85
A149: Q12019 | B149: 2019Q1 | E149: 0.2223808552 | F149: =IFERROR(VLOOKUP($A$149,'[7]Quarter of Maturity Dist'!$A$1:$C$21,3,FALSE),0) -> 12244333.05 | I149: 0.2085789086 | J149: 13194381.55 | M149: 0.1876644998 | N149: 13828237.84 | Q149: 0.2198076825 | R149: 24745880.52 | U149: 0.2140162482 | V149: 27196605.73 | Y149: 0.2036001125 | Z149: 29137951.74 | AC149: 0.189562797 | AD149: 30405943.92 | AG149: 0.1983335263 | AH149: 42418601.42 | AK149: 0.1957302146 | AL149: 45602216.73 | AO149: 0.1851572591 | AP149: 46913480.62 | AS149: 0.1730369302 | AT149: 47598329.9
A150: Q22019 | B150: 2019Q2 | E150: 0.09413876877 | F150: =IFERROR(VLOOKUP($A$150,'[7]Quarter of Maturity Dist'!$A$1:$C$21,3,FALSE),0) -> 5183298.88 | I150: 0.0924232483 | J150: 5846552.8 | M150: 0.1010236509 | N150: 7444024.17 | Q150: 0.09301972326 | R150: 10472131.51 | U150: 0.08746653911 | V150: 11115011.12 | Y150: 0.09390848564 | Z150: 13439584.53 | AC150: 0.09766303569 | AD150: 15665187.65 | AG150: 0.09096626463 | AH150: 19455418.32 | AK150: 0.08673625937 | AL150: 20208253.01 | AO150: 0.08422781636 | AP150: 21340886.39 | AS150: 0.08554092332 | AT150: 23530266.53
A151: Q32019 | B151: 2019Q3 | E151: 0.06234156593 | F151: =IFERROR(VLOOKUP($A$151,'[7]Quarter of Maturity Dist'!$A$1:$C$21,3,FALSE),0) -> 3432538.72 | I151: 0.06816783751 | J151: 4312192.75 | M151: 0.06759587925 | N151: 4980866.9 | Q151: 0.05657446792 | R151: 6369136 | U151: 0.05435201926 | V151: 6906907.54 | Y151: 0.05963108296 | Z151: 8534020.91 | AC151: 0.0577696064 | AD151: 9266266.59 | AG151: 0.04996129677 | AH151: 10685477 | AK151: 0.04799269382 | AL151: 11181580.88 | AO151: 0.04898144416 | AP151: 12410477.68 | AS151: 0.04804366505 | AT151: 13215665.67
A152: Q42019 | B152: 2019Q4 | E152: 0.05563566403 | F152: =IFERROR(VLOOKUP($A$152,'[7]Quarter of Maturity Dist'!$A$1:$C$21,3,FALSE),0) -> 3063310.46 | I152: 0.05853474758 | J152: 3702818.27 | M152: 0.05363213157 | N152: 3951934.82 | Q152: 0.0405351835 | R152: 4563438.35 | U152: 0.04429086815 | V152: 5628363.68 | Y152: 0.0446520176 | Z152: 6390312.45 | AC152: 0.04133476606 | AD152: 6630112.02 | AG152: 0.03436988979 | AH152: 7350863.38 | AK152: 0.03509980297 | AL152: 8177729.87 | AO152: 0.03724025213 | AP152: 9435600.07 | AS152: 0.03623710845 | AT152: 9967963.72
A153: Q12020 | B153: 2020Q1 | E153: 0.277799623 | F153: =IFERROR(VLOOKUP($A$153,'[7]Quarter of Maturity Dist'!$A$1:$C$21,3,FALSE),0) -> 15295701.16 | I153: 0.2607899042 | J153: 16497168.98 | M153: 0.2433826289 | N153: 17933881.38 | Q153: 0.2303870786 | R153: 25936905.64 | U153: 0.2138942299 | V153: 27181099.97 | Y153: 0.1945842306 | Z153: 27847656.13 | AC153: 0.1834016185 | AD153: 29417688.57 | AG153: 0.1745591452 | AH153: 37333853.44 | AK153: 0.1636583306 | AL153: 38129946.75 | AO153: 0.1539525981 | AP153: 39007124.34 | AS153: 0.1440382362 | AT153: 39621481.24
A154: Q22020 | B154: 2020Q2 | E154: 0.1371296359 | F154: =IFERROR(VLOOKUP($A$154,'[7]Quarter of Maturity Dist'!$A$1:$C$21,3,FALSE),0) -> 7550384.37 | I154: 0.1272852221 | J154: 8051867.74 | M154: 0.1295131291 | N154: 9543298.57 | Q154: 0.1029897805 | R154: 11594557.45 | U154: 0.09522976547 | V154: 12101540.92 | Y154: 0.08703473056 | Z154: 12455856.47 | AC154: 0.0861607111 | AD154: 13820210.46 | AG154: 0.07425636911 | AH154: 15881587.86 | AK154: 0.07066751341 | AL154: 16464475.19 | AO154: 0.06894960437 | AP154: 17469830.48 | AS154: 0.06868983666 | AT154: 18894934.75
A155: Q32020 | B155: 2020Q3 | E155: 0.07403768398 | F155: =IFERROR(VLOOKUP($A$155,'[7]Quarter of Maturity Dist'!$A$1:$C$21,3,FALSE),0) -> 4076529.25 | I155: 0.0734764178 | J155: 4648005.39 | M155: 0.06955931517 | N155: 5125544.55 | Q155: 0.05005688391 | R155: 5635388.42 | U155: 0.04653135644 | V155: 5913078.87 | Y155: 0.04886627712 | Z155: 6993430.44 | AC155: 0.04848727816 | AD155: 7777377.65 | AG155: 0.03939903434 | AH155: 8426472.14 | AK155: 0.03884010474 | AL155: 9049164.32 | AO155: 0.03762578457 | AP155: 9533282.81 | AS155: 0.03693063369 | AT155: 10158735.96
A156: Q42020 | B156: 2020Q4 | E156: 0.02732206097 | F156: =IFERROR(VLOOKUP($A$156,'[7]Quarter of Maturity Dist'!$A$1:$C$21,3,FALSE),0) -> 1504357.98 | I156: 0.02596662241 | J156: 1642608.67 | M156: 0.02290663744 | N156: 1687897.45 | Q156: 0.01666293483 | R156: 1875908.02 | U156: 0.01645819778 | V156: 2091463.24 | Y156: 0.01553306975 | Z156: 2222994.04 | AC156: 0.01413207404 | AD156: 2266789.99 | AG156: 0.01143773019 | AH156: 2446245.61 | AK156: 0.01146214811 | AL156: 2670509.32 | AO156: 0.01132738599 | AP156: 2870031.16 | AS156: 0.0106479374 | AT156: 2928993.46
A157: Q12021 | B157: 2021Q1 | E157: 0.005261416978 | F157: =IFERROR(VLOOKUP($A$157,'[7]Quarter of Maturity Dist'!$A$1:$C$21,3,FALSE),0) -> 289694.64 | I157: 0.004579539527 | J157: 289694.64 | M157: 0.00393147705 | N157: 289694.64 | Q157: 0.002573240722 | R157: 289694.64 | U157: 0.002983698485 | V157: 379160.33 | Y157: 0.002649365561 | Z157: 379160.33 | AC157: 0.002363836915 | AD157: 379160.33 | AG157: 0.001772811992 | AH157: 379160.33 | AK157: 0.002016136143 | AL157: 469729.61 | AO157: 0.001853920152 | AP157: 469729.61 | AS157: 0.001707634909 | AT157: 469729.61
A158: Q22021 | B158: 2021Q2 | E158: 0 | F158: =IFERROR(VLOOKUP($A$158,'[7]Quarter of Maturity Dist'!$A$1:$C$21,3,FALSE),0) -> 0 | I158: 0 | J158: 0 | M158: 0 | N158: 0 | Q158: 0 | R158: 0 | U158: 0 | V158: 0 | Y158: 0 | Z158: 0 | AC158: 0 | AD158: 0 | AG158: 0 | AH158: 0 | AK158: 0 | AL158: 0 | AO158: 0 | AP158: 0 | AS158: 0 | AT158: 0
A159: Q32021 | B159: 2021Q3 | E159: 0 | F159: =IFERROR(VLOOKUP($A$159,'[7]Quarter of Maturity Dist'!$A$1:$C$21,3,FALSE),0) -> 0 | I159: 0 | J159: 0 | M159: 0 | N159: 0 | Q159: 0 | R159: 0 | U159: 0 | V159: 0 | Y159: 0 | Z159: 0 | AC159: 0 | AD159: 0 | AG159: 0 | AH159: 0 | AK159: 0 | AL159: 0 | AO159: 0 | AP159: 0 | AS159: 0 | AT159: 0
A160: Q42021 | B160: 2021Q4 | E160: 0 | F160: =IFERROR(VLOOKUP($A$160,'[7]Quarter of Maturity Dist'!$A$1:$C$21,3,FALSE),0) -> 0 | I160: 0 | J160: 0 | M160: 0 | N160: 0 | Q160: 0 | R160: 0 | U160: 0 | V160: 0 | Y160: 0 | Z160: 0 | AC160: 0 | AD160: 0 | AG160: 0 | AH160: 0 | AK160: 0 | AL160: 0 | AO160: 0 | AP160: 0 | AS160: 0 | AT160: 0
A161: Q12022 | B161: 2022Q1 | E161: 0 | F161: =IFERROR(VLOOKUP($A$161,'[7]Quarter of Maturity Dist'!$A$1:$C$21,3,FALSE),0) -> 0 | I161: 0 | J161: 0 | M161: 0 | N161: 0 | Q161: 0 | R161: 0 | U161: 0 | V161: 0 | Y161: 0 | Z161: 0 | AC161: 0 | AD161: 0 | AG161: 0 | AH161: 0 | AK161: 0 | AL161: 0 | AO161: 0 | AP161: 0 | AS161: 0 | AT161: 0
A162: Q22022 | B162: 2022Q2 | E162: 0 | F162: =IFERROR(VLOOKUP($A$162,'[7]Quarter of Maturity Dist'!$A$1:$C$21,3,FALSE),0) -> 0 | I162: 0 | J162: 0 | M162: 0 | N162: 0 | Q162: 0 | R162: 0 | U162: 0 | V162: 0 | Y162: 0 | Z162: 0 | AC162: 0 | AD162: 0 | AG162: 0 | AH162: 0 | AK162: 0 | AL162: 0 | AO162: 0 | AP162: 0 | AS162: 0 | AT162: 0
A163: Q32022 | B163: 2022Q3 | E163: 0 | F163: =IFERROR(VLOOKUP($A$163,'[7]Quarter of Maturity Dist'!$A$1:$C$21,3,FALSE),0) -> 0 | I163: 0 | J163: 0 | M163: 0 | N163: 0 | Q163: 0 | R163: 0 | U163: 0 | V163: 0 | Y163: 0 | Z163: 0 | AC163: 0 | AD163: 0 | AG163: 0 | AH163: 0 | AK163: 0 | AL163: 0 | AO163: 0 | AP163: 0 | AS163: 0 | AT163: 0
A164: Q42022 | B164: 2022Q4 | E164: 0 | F164: =IFERROR(VLOOKUP($A$164,'[7]Quarter of Maturity Dist'!$A$1:$C$21,3,FALSE),0) -> 0 | I164: 0 | J164: 0 | M164: 0 | N164: 0 | Q164: 0 | R164: 0 | U164: 0 | V164: 0 | Y164: 0 | Z164: 0 | AC164: 0 | AD164: 0 | AG164: 0 | AH164: 0 | AK164: 0 | AL164: 0 | AO164: 0 | AP164: 0 | AS164: 0 | AT164: 0
E166: =SUM(E137:E164) -> 1 | F166: =SUM(F137:F165) -> 55060194.09 | G166: =F134-F166 -> 1.341104507e-07 | I166: 1 | J166: 63258464.81 | K166: 8.940696716e-08 | M166: 1 | N166: 73685954.75 | O166: 1.788139343e-07 | Q166: 1 | R166: 112579688.9 | S166: 0 | U166: 1 | V166: 127077294.2 | W166: 0 | Y166: 1 | Z166: 143113632.8 | AA166: 0 | AC166: 1 | AD166: 160400376 | AE166: 2.384185791e-07 | AG166: 1 | AH166: 213875093.1 | AI166: 0 | AK166: 1 | AL166: 232985064.8 | AM166: -3.278255463e-07 | AO166: 1 | AP166: 253371003.9 | AQ166: -2.682209015e-07 | AS166: 1 | AT166: 275076134.5 | AU166: -5.960464478e-07
A167: 0 to 6 months
A168: 07 to 12 months | B168: Seasoning Distribution
A169: 0 to 6 months | B169: 0 to 6 months | E169: =F169/F$180 -> 0 | F169: =IFERROR(VLOOKUP($A$169,'[7]Seasoning Distribution'!$A$1:$C$10,3,FALSE),0) -> 0 | I169: 0 | J169: 0 | M169: 0 | N169: 0 | Q169: 0 | R169: 0 | U169: 0 | V169: 0 | Y169: 0 | Z169: 0 | AC169: 0 | AD169: 0 | AG169: 0 | AH169: 0 | AK169: 0 | AL169: 0 | AO169: 0 | AP169: 0 | AS169: 0.0004042561896 | AT169: 111201.23
A170: 07 to 12 months | B170: 07 to 12 months | E170: 0 | F170: =IFERROR(VLOOKUP($A$170,'[7]Seasoning Distribution'!$A$1:$C$10,3,FALSE),0) -> 0 | I170: 0 | J170: 0 | M170: 0 | N170: 0 | Q170: 0 | R170: 0 | U170: 0 | V170: 0 | Y170: 0 | Z170: 0 | AC170: 0 | AD170: 0 | AG170: 0 | AH170: 0 | AK170: 0.0004400540871 | AL170: 102526.03 | AO170: 0.2080950005 | AP170: 52725239.2 | AS170: 0.3380213664 | AT170: 92981610.86
A171: 13 to 18 months | B171: 13 to 18 months | E171: 0 | F171: =IFERROR(VLOOKUP($A$171,'[7]Seasoning Distribution'!$A$1:$C$10,3,FALSE),0) -> 0 | I171: 0 | J171: 0 | M171: 0 | N171: 0 | Q171: 0 | R171: 0 | U171: 0 | V171: 0 | Y171: 0 | Z171: 0 | AC171: 0.0005835990682 | AD171: 93609.51 | AG171: 0.2187050888 | AH171: 46775571.24 | AK171: 0.3498487217 | AL171: 81509527.1 | AO171: 0.3038324637 | AP171: 76982336.35 | AS171: 0.2629515795 | AT171: 72331704.07
A172: 19 to 24 months | B172: 19 to 24 months | E172: 0 | F172: =IFERROR(VLOOKUP($A$172,'[7]Seasoning Distribution'!$A$1:$C$10,3,FALSE),0) -> 0 | I172: 0 | J172: 0 | M172: 0 | N172: 0 | Q172: 0 | R172: 0 | U172: 0.0006645165099 | V172: 84444.96 | Y172: 0.2556324911 | Z172: 36584494.46 | AC172: 0.3950675775 | AD172: 63368988 | AG172: 0.3214499868 | AH172: 68750145.87 | AK172: 0.2783901562 | AL172: 64860748.58 | AO172: 0.2238922745 | AP172: 56727810.35 | AS172: 0.1798201156 | AT172: 49464222.3
A173: 25 to 30 months | B173: 25 to 30 months | E173: 0 | F173: =IFERROR(VLOOKUP($A$173,'[7]Seasoning Distribution'!$A$1:$C$10,3,FALSE),0) -> 0 | I173: 0 | J173: 0 | M173: 0.0009964506838 | N173: 73424.42 | Q173: 0.2661979045 | R173: 29968477.28 | U173: 0.4064095385 | V173: 51645424.47 | Y173: 0.3296380716 | Z173: 47175701.94 | AC173: 0.2811815085 | AD173: 45101619.7 | AG173: 0.212381886 | AH173: 45423195.64 | AK173: 0.1724294168 | AL173: 40173478.84 | AO173: 0.1167630003 | AP173: 29584358.62 | AS173: 0.1087961731 | AT173: 29927230.74
A174: 31 to 36 months | B174: 31 to 36 months | E174: 0.001127076121 | F174: =IFERROR(VLOOKUP($A$174,'[7]Seasoning Distribution'!$A$1:$C$10,3,FALSE),0) -> 62057.03 | I174: 0.3099703225 | J174: 19608246.74 | M174: 0.4751617659 | N174: 35012748.38 | Q174: 0.3604974516 | R174: 40584690.96 | U174: 0.3015522044 | V174: 38320438.18 | Y174: 0.2185736558 | Z174: 31280869.92 | AC174: 0.1650141923 | AD174: 26468338.5 | AG174: 0.1160726831 | AH174: 24825055.91 | AK174: 0.1075887809 | AL174: 25066579.1 | AO174: 0.108914545 | AP174: 27595787.61 | AS174: 0.08366485486 | AT174: 23014204.87
A175: 37 to 42 months | B175: 37 to 42 months | E175: 0.4627781694 | F175: =IFERROR(VLOOKUP($A$175,'[7]Seasoning Distribution'!$A$1:$C$10,3,FALSE),0) -> 25480655.83 | I175: 0.3590704513 | J175: 22714245.51 | M175: 0.2897331467 | N175: 21349263.54 | Q175: 0.196125995 | R175: 22079803.51 | U175: 0.1462666798 | V175: 18587173.89 | Y175: 0.09908468126 | Z175: 14180368.69 | AC175: 0.09410749496 | AD175: 15094877.58 | AG175: 0.09604761624 | AH175: 20542192.87 | AK175: 0.07179253874 | AL175: 16726589.29 | AO175: 0.01990237861 | AP175: 5042685.65 | AS175: 0.008573008938 | AT175: 2358230.16
A176: 43 to 48 months | B176: 43 to 48 months | E176: 0.3260320401 | F176: =IFERROR(VLOOKUP($A$176,'[7]Seasoning Distribution'!$A$1:$C$10,3,FALSE),0) -> 17951387.41 | I176: 0.2009103339 | J176: 12709279.29 | M176: 0.1300109601 | N176: 9579981.72 | Q176: 0.09861395474 | R176: 11101928.35 | U176: 0.09503971956 | V176: 12077390.4 | Y176: 0.07815672771 | Z176: 11185293.23 | AC176: 0.05369606663 | AD176: 8612869.28 | AG176: 0.01882137752 | AH176: 4025423.87 | AK176: 0.007650290638 | AL176: 1782403.46 | AO176: 0.01478826469 | AP176: 3746917.47 | AS176: 0.01100645192 | AT176: 3027612.25
A177: 49 to 54 months | B177: 49 to 54 months | E177: 0.1292349551 | F177: =IFERROR(VLOOKUP($A$177,'[7]Seasoning Distribution'!$A$1:$C$10,3,FALSE),0) -> 7115701.71 | I177: 0.08793577186 | J177: 5562681.93 | M177: 0.07807053867 | N177: 5752702.18 | Q177: 0.06603161094 | R177: 7433818.22 | U177: 0.04608850683 | V177: 5856802.74 | Y177: 0.01253834519 | Z177: 1794408.13 | AC177: 0.004691694737 | AD177: 752549.6 | AG177: 0.01405175028 | AH177: 3005319.4 | AK177: 0.009423946389 | AL177: 2195638.76 | AO177: 0.002192461732 | AP177: 555506.23 | AS177: 0.003088208148 | AT177: 849492.36
A178: 55 to 60 months | B178: 55 to 60 months | E178: 0.07325107706 | F178: =IFERROR(VLOOKUP($A$178,'[7]Seasoning Distribution'!$A$1:$C$10,3,FALSE),0) -> 4033218.52 | I178: 0.04160267765 | J178: 2631721.52 | M178: 0.02602713796 | N178: 1917834.51 | Q178: 0.01227798134 | R178: 1382251.32 | U178: 0.003211255344 | V178: 408077.64 | Y178: 0.006376027302 | Z178: 912496.43 | AC178: 0.005044691478 | AD178: 809170.41 | AG178: 0.002038758621 | AH178: 436039.69 | AK178: 0.002436094479 | AL178: 567573.63 | AO178: 0.001601266576 | AP178: 405714.52 | AS178: 0.0036289038 | AT178: 998224.83
A179: 60+ months | B179: 61 to 72 months | E179: 0.007576682155 | F179: =IFERROR(VLOOKUP($A$179,'[7]Seasoning Distribution'!$A$1:$C$10,3,FALSE),0) -> 417173.59 | I179: 0.0005104426751 | J179: 32289.82 | M179: 0 | N179: 0 | Q179: 0.0002551019662 | R179: 28719.3 | U179: 0.0007675791387 | V179: 97541.88 | Y179: 0 | Z179: 0 | AC179: 0.000613174747 | AD179: 98353.46 | AG179: 0.000430852647 | AH179: 92148.65 | AK179: 0 | AL179: 0 | AO179: 1.83443643e-05 | AP179: 4647.93 | AS179: 4.508155541e-05 | AT179: 12400.86
A180: 61 to 72 months | B180: Total | E180: =SUM(E169:E179) -> 1 | F180: =SUM(F169:F179) -> 55060194.09 | G180: =F166-F180 -> 0 | I180: 1 | J180: 63258464.81 | K180: 0 | M180: 1 | N180: 73685954.75 | O180: 0 | Q180: 1 | R180: 112579688.9 | S180: 0 | U180: 1 | V180: 127077294.2 | W180: 0 | Y180: 1 | Z180: 143113632.8 | AA180: 0 | AC180: 1 | AD180: 160400376 | AE180: 0 | AG180: 1 | AH180: 213875093.1 | AI180: 0 | AK180: 1 | AL180: 232985064.8 | AM180: 0 | AO180: 1 | AP180: 253371003.9 | AQ180: 0 | AS180: 1 | AT180: 275076134.5 | AU180: 0
B182: Remaining Term Distribution
A183: 0 - 12 months | B183: 0-12 Months | E183: =F183/F$189 -> 0.4401806016 | F183: =IFERROR(VLOOKUP($A$183,'[7]Remaining Term'!$A$1:$C$6,3,FALSE),0) -> 24236429.36 | I183: 0.4001940478 | J183: 25315661.09 | M183: 0.3737406419 | N183: 27539436.03 | Q183: 0.2267904321 | R183: 25531996.3 | U183: 0.1806315279 | V183: 22954165.8 | Y183: 0.1496748352 | Z183: 21420509.41 | AC183: 0.1350870655 | AD183: 21668016.1 | AG183: 0.09620330216 | AH183: 20575490.21 | AK183: 0.08554061823 | AL183: 19929686.48 | AO183: 0.06832092466 | AP183: 17310541.27 | AS183: 0.06370194644 | AT183: 17522885.19
A184: 13 - 24 months | B184: 13-24 Months | E184: 0.5443011327 | F184: =IFERROR(VLOOKUP($A$184,'[7]Remaining Term'!$A$1:$C$6,3,FALSE),0) -> 29969326.01 | I184: 0.5137415138 | J184: 32498499.47 | M184: 0.4677117142 | N184: 34463784.21 | Q184: 0.4096056659 | R184: 46113278.45 | U184: 0.4158464736 | V184: 52844644.65 | Y184: 0.4136997307 | Z184: 59206071.35 | AC184: 0.3991693403 | AD184: 64026912.28 | AG184: 0.2698201077 | AH184: 57707800.66 | AK184: 0.2206139653 | AL184: 51399759 | AO184: 0.2051331973 | AP184: 51974804.15 | AS184: 0.1876596761 | AT184: 51620698.3
A185: 25 - 36 months | B185: 25-36 Months | E185: 0.01551826567 | F185: =IFERROR(VLOOKUP($A$185,'[7]Remaining Term'!$A$1:$C$6,3,FALSE),0) -> 854438.72 | I185: 0.08606443843 | J185: 5444304.25 | M185: 0.1585476438 | N185: 11682734.51 | Q185: 0.363603902 | R185: 40934414.19 | U185: 0.3947360191 | V185: 50161985.21 | Y185: 0.3839075871 | Z185: 54942409.45 | AC185: 0.3585212092 | AD185: 57506936.78 | AG185: 0.3617020437 | AH185: 77359058.29 | AK185: 0.3861659004 | AL185: 89970887.32 | AO185: 0.3813217397 | AP185: 96615872.01 | AS185: 0.3734731739 | AT185: 102733557
A186: 37 - 48 months | B186: 37-48 Months | E186: 0 | F186: =IFERROR(VLOOKUP($A$186,'[7]Remaining Term'!$A$1:$C$6,3,FALSE),0) -> 0 | I186: 0 | J186: 0 | M186: 0 | N186: 0 | Q186: 0 | R186: 0 | U186: 0.008785979489 | V186: 1116498.5 | Y186: 0.05271784695 | Z186: 7544642.59 | AC186: 0.107222385 | AD186: 17198510.88 | AG186: 0.2722745464 | AH186: 58232743.98 | AK186: 0.3017209633 | AL186: 70296478.18 | AO186: 0.3063085613 | AP186: 77609707.69 | AS186: 0.2923420974 | AT186: 80416334.11
A187: 49 - 60 months | B187: 49-60 Months | E187: 0 | F187: =IFERROR(VLOOKUP($A$187,'[7]Remaining Term'!$A$1:$C$6,3,FALSE),0) -> 0 | I187: 0 | J187: 0 | M187: 0 | N187: 0 | Q187: 0 | R187: 0 | U187: 0 | V187: 0 | Y187: 0 | Z187: 0 | AC187: 0 | AD187: 0 | AG187: 0 | AH187: 0 | AK187: 0.005958552799 | AL187: 1388253.81 | AO187: 0.03891557699 | AP187: 9860078.81 | AS187: 0.08282310622 | AT187: 22782659.91
A188: 60+ Months | B188: 60+ Months | E188: 0 | F188: =IFERROR(VLOOKUP($A$188,'[7]Remaining Term'!$A$1:$C$6,3,FALSE),0) -> 0 | I188: 0 | J188: 0 | M188: 0 | N188: 0 | Q188: 0 | R188: 0 | U188: 0 | V188: 0 | Y188: 0 | Z188: 0 | AC188: 0 | AD188: 0 | AG188: 0 | AH188: 0 | AK188: 0 | AL188: 0 | AO188: 0 | AP188: 0 | AS188: 0 | AT188: 0
E189: =SUM(E183:E188) -> 1 | F189: =SUM(F183:F188) -> 55060194.09 | G189: =F180-F189 -> 0 | I189: 1 | J189: 63258464.81 | K189: 0 | M189: 1 | N189: 73685954.75 | O189: 0 | Q189: 1 | R189: 112579688.9 | S189: 0 | U189: 1 | V189: 127077294.2 | W189: 0 | Y189: 1 | Z189: 143113632.8 | AA189: 0 | AC189: 1 | AD189: 160400376 | AE189: 0 | AG189: 1 | AH189: 213875093.1 | AI189: 0 | AK189: 1 | AL189: 232985064.8 | AM189: 0 | AO189: 1 | AP189: 253371003.9 | AQ189: 0 | AS189: 1 | AT189: 275076134.5 | AU189: 0
B191: Origination LVR Distribution
A192: 01. 10% to 20% | B192: 10% to 20% | E192: =F192/F$202 -> 0 | F192: =IFERROR(VLOOKUP($A$192,'[7]LVR Band'!$A$1:$C$11,3,FALSE),0) -> 0 | I192: 0 | J192: 0 | M192: 0 | N192: 0 | Q192: 0.0001528210831 | R192: 17204.55 | U192: 0.0001353864993 | V192: 17204.55 | Y192: 0.0001202160106 | Z192: 17204.55 | AC192: 0.0001072600353 | AD192: 17204.55 | AG192: 0.0003106973282 | AH192: 66450.42 | AK192: 0.0002852132177 | AL192: 66450.42 | AO192: 0.0002622652907 | AP192: 66450.42 | AS192: 0.0002415710113 | AT192: 66450.42
A193: 02. 21% to 30% | B193: 21% to 30% | E193: 0.002902656677 | F193: =IFERROR(VLOOKUP($A$193,'[7]LVR Band'!$A$1:$C$11,3,FALSE),0) -> 159820.84 | I193: 0.003429039428 | J193: 216915.77 | M193: 0.003002857203 | N193: 221268.4 | Q193: 0.006505452421 | R193: 732381.81 | U193: 0.007104290707 | V193: 902794.04 | Y193: 0.006928915859 | Z193: 991622.32 | AC193: 0.007667855029 | AD193: 1229926.83 | AG193: 0.01071762315 | AH193: 2292232.65 | AK193: 0.01064469734 | AL193: 2480055.5 | AO193: 0.01043505645 | AP193: 2643940.73 | AS193: 0.01025936225 | AT193: 2822105.71
A194: 03. 31% to 40% | B194: 31% to 40% | E194: 0.03595540122 | F194: =IFERROR(VLOOKUP($A$194,'[7]LVR Band'!$A$1:$C$11,3,FALSE),0) -> 1979711.37 | I194: 0.03773384901 | J194: 2386985.36 | M194: 0.0359271021 | N194: 2647322.82 | Q194: 0.04318233569 | R194: 4861453.92 | U194: 0.04178719413 | V194: 5310203.56 | Y194: 0.04083054637 | Z194: 5843407.82 | AC194: 0.03844527034 | AD194: 6166635.82 | AG194: 0.04219697865 | AH194: 9024882.74 | AK194: 0.04182029393 | AL194: 9743503.89 | AO194: 0.04082464524 | AP194: 10343781.35 | AS194: 0.03944824188 | AT194: 10851269.89
A195: 04. 41% to 50% | B195: 41% to 50% | E195: 0.09423451853 | F195: =IFERROR(VLOOKUP($A$195,'[7]LVR Band'!$A$1:$C$11,3,FALSE),0) -> 5188570.88 | I195: 0.09700727971 | J195: 6136531.59 | M195: 0.09326812909 | N195: 6872551.14 | Q195: 0.09746155619 | R195: 10972191.68 | U195: 0.09745428309 | V195: 12384226.6 | Y195: 0.09803314356 | Z195: 14029879.31 | AC195: 0.0951948209 | AD195: 15269285.07 | AG195: 0.1003942335 | AH195: 21471826.04 | AK195: 0.1005003415 | AL195: 23415078.57 | AO195: 0.09836458511 | AP195: 24922733.68 | AS195: 0.09521667845 | AT195: 26191835.85
A196: 05. 51% to 60% | B196: 51% to 60% | E196: 0.1619786495 | F196: =IFERROR(VLOOKUP($A$196,'[7]LVR Band'!$A$1:$C$11,3,FALSE),0) -> 8918575.88 | I196: 0.1567796261 | J196: 9917638.46 | M196: 0.1508448528 | N196: 11115147 | Q196: 0.1596799138 | R196: 17976715.02 | U196: 0.1581577906 | V196: 20098264.08 | Y196: 0.1544159931 | Z196: 22099033.73 | AC196: 0.1487697419 | AD196: 23862722.54 | AG196: 0.1520078786 | AH196: 32510699.2 | AK196: 0.1510774289 | AL196: 35198784.55 | AO196: 0.1491638503 | AP196: 37793794.49 | AS196: 0.146525665 | AT196: 40305713.54
A197: 06. 61% to 70% | B197: 61% to 70% | E197: 0.2294428576 | F197: =IFERROR(VLOOKUP($A$197,'[7]LVR Band'!$A$1:$C$11,3,FALSE),0) -> 12633168.27 | I197: 0.2223441592 | J197: 14065150.17 | M197: 0.2246696742 | N197: 16554999.45 | Q197: 0.2208560624 | R197: 24863906.81 | U197: 0.2159475841 | V197: 27442034.67 | Y197: 0.2109986109 | Z197: 30196777.72 | AC197: 0.2068182286 | AD197: 33173721.64 | AG197: 0.2071576744 | AH197: 44305866.9 | AK197: 0.2042874227 | AL197: 47595918.42 | AO197: 0.2032202108 | AP197: 51490108.84 | AS197: 0.2023916858 | AT197: 55673122.6
A198: 07. 71% to 80% | B198: 71% to 80% | E198: 0.1997975816 | F198: =IFERROR(VLOOKUP($A$198,'[7]LVR Band'!$A$1:$C$11,3,FALSE),0) -> 11000893.62 | I198: 0.2020897862 | J198: 12783889.63 | M198: 0.2062132455 | N198: 15195019.88 | Q198: 0.2062007231 | R198: 23214013.27 | U198: 0.2081476167 | V198: 26450835.92 | Y198: 0.2119468234 | Z198: 30332479.86 | AC198: 0.2151287259 | AD198: 34506728.53 | AG198: 0.2114846178 | AH198: 45231292.32 | AK198: 0.2129476663 | AL198: 49613625.83 | AO198: 0.2104363562 | AP198: 53318470.84 | AS198: 0.2099333936 | AT198: 57747666.42
A199: 08. 81% to 90% | B199: 81% to 90% | E199: 0.1864328897 | F199: =IFERROR(VLOOKUP($A$199,'[7]LVR Band'!$A$1:$C$11,3,FALSE),0) -> 10265031.09 | I199: 0.1895759738 | J199: 11992285.07 | M199: 0.1954775075 | N199: 14403946.77 | Q199: 0.1835181654 | R199: 20660417.98 | U199: 0.1844573804 | V199: 23440344.79 | Y199: 0.1843653738 | Z199: 26385198.41 | AC199: 0.188995552 | AD199: 30314957.61 | AG199: 0.1803597348 | AH199: 38574455.07 | AK199: 0.1802915922 | AL199: 42005248.29 | AO199: 0.1813396534 | AP199: 45946210.03 | AS199: 0.1855272105 | AT199: 51034107.91
A200: 09. 91% to 100% | B200: 91% to 100% | E200: 0.08925544527 | F200: =IFERROR(VLOOKUP($A$200,'[7]LVR Band'!$A$1:$C$11,3,FALSE),0) -> 4914422.14 | I200: 0.0910402865 | J200: 5759068.76 | M200: 0.09059663151 | N200: 6675699.29 | Q200: 0.08244296984 | R200: 9281403.9 | U200: 0.08680847372 | V200: 11031385.95 | Y200: 0.09236037701 | Z200: 13218029.08 | AC200: 0.09887254532 | AD200: 15859193.45 | AG200: 0.09537056186 | AH200: 20397387.8 | AK200: 0.09814534395 | AL200: 22866399.32 | AO200: 0.1059533772 | AP200: 26845513.55 | AS200: 0.1104561915 | AT200: 30383862.19
A201: > 100% | B201: > 100% | E201: 0 | F201: =IFERROR(VLOOKUP($A$201,'[7]LVR Band'!$A$1:$C$11,3,FALSE),0) -> 0 | I201: 0 | J201: 0 | M201: 0 | N201: 0 | Q201: 0 | R201: 0 | U201: 0 | V201: 0 | Y201: 0 | Z201: 0 | AC201: 0 | AD201: 0 | AG201: 0 | AH201: 0 | AK201: 0 | AL201: 0 | AO201: 0 | AP201: 0 | AS201: 0 | AT201: 0
E202: =SUM(E192:E201) -> 1 | F202: =SUM(F192:F201) -> 55060194.09 | G202: =F189-F202 -> 0 | I202: 1 | J202: 63258464.81 | K202: 0 | M202: 1 | N202: 73685954.75 | O202: 0 | Q202: 1 | R202: 112579688.9 | S202: 0 | U202: 1 | V202: 127077294.2 | W202: 0 | Y202: 1 | Z202: 143113632.8 | AA202: 0 | AC202: 1 | AD202: 160400376 | AE202: 0 | AG202: 1 | AH202: 213875093.1 | AI202: 0 | AK202: 1 | AL202: 232985064.8 | AM202: 0 | AO202: 1 | AP202: 253371003.9 | AQ202: 0 | AS202: 1 | AT202: 275076134.5 | AU202: 0
B204: New v Used
A205: New | B205: New | E205: =F205/F$208 -> 0.9157206463 | F205: =IFERROR(VLOOKUP($A$205,'[7]New v Used'!$A$1:$C$4,3,FALSE),0) -> 50419756.52 | I205: 0.919410461 | J205: 58160494.29 | M205: 0.9168773699 | N205: 67560984.39 | Q205: 0.9154882631 | R205: 103065383.9 | U205: 0.914346306 | V205: 116192654.5 | Y205: 0.9161860412 | Z205: 131118712.7 | AC205: 0.9167448678 | AD205: 147046221.5 | AG205: 0.9159571391 | AH205: 195900418.4 | AK205: 0.9162099355 | AL205: 213463231.2 | AO205: 0.9157072006 | AP205: 232013652.7 | AS205: 0.9151503341 | AT205: 251736016.4
A206: USed | B206: Used | E206: =F206/F$208 -> 0.08427935365 | F206: =IFERROR(VLOOKUP($A$206,'[7]New v Used'!$A$1:$C$4,3,FALSE),0) -> 4640437.57 | I206: 0.08058953905 | J206: 5097970.52 | M206: 0.0831226301 | N206: 6124970.36 | Q206: 0.08451173688 | R206: 9514305.05 | U206: 0.08565369401 | V206: 10884639.67 | Y206: 0.08381395885 | Z206: 11994920.13 | AC206: 0.08325513219 | AD206: 13354154.51 | AG206: 0.08404286089 | AH206: 17974674.7 | AK206: 0.08379006452 | AL206: 19521833.61 | AO206: 0.08429279937 | AP206: 21357351.2 | AS206: 0.08484966593 | AT206: 23340118.12
A207: Used
E208: =SUM(E205:E206) -> 1 | F208: =SUM(F205:F206) -> 55060194.09 | G208: =F202-F208 -> -1.11758709e-07 | I208: 1 | J208: 63258464.81 | K208: -9.685754776e-08 | M208: 1 | N208: 73685954.75 | O208: -1.341104507e-07 | Q208: 1 | R208: 112579688.9 | S208: 0 | U208: 1 | V208: 127077294.2 | W208: 0 | Y208: 1 | Z208: 143113632.8 | AA208: 0 | AC208: 1 | AD208: 160400376 | AE208: -4.470348358e-07 | AG208: 1 | AH208: 213875093.1 | AI208: -3.278255463e-07 | AK208: 1 | AL208: 232985064.8 | AM208: 0 | AO208: 1 | AP208: 253371003.9 | AQ208: 2.682209015e-07 | AS208: 1 | AT208: 275076134.5 | AU208: 7.152557373e-07
B210: Contract Type
A211: Finance Lease | B211: Finance Lease | E211: =F211/F$214 -> 0.009328802386 | F211: =IFERROR(VLOOKUP($A$211,'[7]Loan Type'!$A$1:$C$4,3,FALSE),0) -> 513645.67 | I211: 0.01030744853 | J211: 652033.37 | M211: 0.01011599826 | N211: 745406.99 | Q211: 0.007868121225 | R211: 885790.64 | U211: 0.007648447399 | V211: 971944 | Y211: 0.00923894764 | Z211: 1322219.36 | AC211: 0.01100425556 | AD211: 1765086.73 | AG211: 0.009531250507 | AH211: 2038497.09 | AK211: 0.0107718473 | AL211: 2509679.54 | AO211: 0.01401723707 | AP211: 3551561.43 | AS211: 0.01544419049 | AT211: 4248328.22
A212: Goods Mortgage | B212: Goods Mortgage | E212: =F212/F$214 -> 0.9906711976 | F212: =IFERROR(VLOOKUP($A$212,'[7]Loan Type'!$A$1:$C$4,3,FALSE),0) -> 54546548.42 | I212: 0.9896925515 | J212: 62606431.44 | M212: 0.9898840017 | N212: 72940547.76 | Q212: 0.9921318788 | R212: 111693898.3 | U212: 0.9923515526 | V212: 126105350.2 | Y212: 0.9907610524 | Z212: 141791413.4 | AC212: 0.9889957444 | AD212: 158635289.3 | AG212: 0.9904687495 | AH212: 211836596.1 | AK212: 0.9892281527 | AL212: 230475385.2 | AO212: 0.9859827629 | AP212: 249819442.5 | AS212: 0.9845558095 | AT212: 270827806.3
A213: Hire Purchase | B213: Hire Purchase | E213: =F213/F$214 -> 0 | F213: =IFERROR(VLOOKUP($A$213,'[7]Loan Type'!$A$1:$C$4,3,FALSE),0) -> 0 | I213: 0 | J213: 0 | M213: 0 | N213: 0 | Q213: 0 | R213: 0 | U213: 0 | V213: 0 | Y213: 0 | Z213: 0 | AC213: 0 | AD213: 0 | AG213: 0 | AH213: 0 | AK213: 0 | AL213: 0 | AO213: 0 | AP213: 0 | AS213: 0 | AT213: 0
E214: =SUM(E211:E213) -> 1 | F214: =SUM(F211:F213) -> 55060194.09 | G214: =F208-F214 -> 0 | I214: 1 | J214: 63258464.81 | K214: 0 | M214: 1 | N214: 73685954.75 | O214: 0 | Q214: 1 | R214: 112579688.9 | S214: 0 | U214: 1 | V214: 127077294.2 | W214: 0 | Y214: 1 | Z214: 143113632.8 | AA214: 0 | AC214: 1 | AD214: 160400376 | AE214: 0 | AG214: 1 | AH214: 213875093.1 | AI214: 0 | AK214: 1 | AL214: 232985064.8 | AM214: 0 | AO214: 1 | AP214: 253371003.9 | AQ214: 2.384185791e-07 | AS214: 1 | AT214: 275076134.5 | AU214: 0
... 30 more rows
